{"text_format":"1","workbook":"xlsx","n_sheets":9,"sheets":["Index","General Info","Financial Results","Asset Liabilities","TextBlock","Segment","Taxonomy","Cash Flow Direct","Cash Flow Indirect"],"not_rendered":{"charts":0,"images":1,"macros":1,"external_links":0,"defined_names":8,"comments":0,"pivot_tables":0},"unopened":[],"bounds":{"document_bytes":16777216,"sheet_cells":100000,"rows_first":2000,"rows_last":500,"rows_between":2000,"halvings":0,"cell_chars":16384,"cell_head_chars":4096},"cells_cut":0,"cells_raw":0,"read":"whole","date_system":"1900"}

{"sheet":"Index","index":0,"n_rows":55,"n_cols":10,"rows_kept":55,"cut":false,"hidden":false,"merged":[[54,3,54,9],[50,3,50,9],[51,3,51,9],[52,3,52,9],[53,3,53,9],[29,4,29,8],[30,4,30,8],[49,3,49,9],[37,3,37,9],[38,3,38,9],[39,3,39,9],[40,3,40,9],[41,3,41,9],[42,3,42,9],[43,3,43,9],[44,3,44,9],[47,3,47,9],[48,3,48,9],[33,3,33,9],[34,3,34,9],[22,3,22,9],[23,3,23,9],[26,3,26,9],[27,4,27,8],[28,4,28,8],[21,3,21,9],[5,4,5,8],[6,5,6,8],[7,5,7,8],[8,5,8,8],[10,5,10,8],[13,3,13,9],[14,3,14,9],[15,3,15,9],[18,3,18,9],[19,3,19,9],[20,3,20,9],[9,5,9,8]]}
[]
[]
[]
[]
[]
[null,null,null,null,"                                      XBRL Excel Utility"]
[null,null,null,null,"1.","Overview"]
[null,null,null,null,"2.","Before you begin"]
[null,null,null,null,"3.","Index"]
[null,null,null,null,"4.","Import XBRL file"]
[null,null,null,null,"5.","Steps for Filing Results  - Banking Format"]
[]
[]
[null,null,null,"1. Overview"]
[null,null,null,"The excel utility can be used for creating the XBRL/XML file for efiling of Financial Results Banking Format"]
[null,null,null,"Financial Results - Banking Format XBRL filing consists of two processes. Firstly generation of XBRL/XML file of Financial Results - Banking Format, and upload of generated XBRL/XML file to BSE Listing Center Website (www.listing.bseindia.com) ."]
[]
[]
[null,null,null," 2.  Before you begin"]
[null,null,null,"1. The version of Microsoft Excel in your system should be Microsoft Office Excel 2007 and above."]
[null,null,null,"2. The system should have a file compression software to unzip excel utility file."]
[null,null,null,"3. Make sure that you have downloaded the latest Excel Utility from BSE website to your local system."]
[null,null,null,"4. Make sure that you have downloaded the Chrome Browser to view report generated from Excel utility"]
[null,null,null,"5. Please enable the Macros (if disabled) as per instructions given in manual, so that all the functionalities of  Excel Utility works fine. Please first go through Enable Macro - Manual attached with zip file."]
[]
[]
[null,null,null,"3. Index "]
[null,null,null,1,"Details of general information about company",null,null,null,null,"General Info"]
[null,null,null,2,"Financial Results By Banks",null,null,null,null,"Quarterly"]
[null,null,null,3,"Statement of Asset and Liabilities",null,null,null,null,"Asset Liabilities"]
[null,null,null,4,"Format of Reporting of Segment wise Revenue, Result and Capital Employed along with the quarterly results",null,null,null,null,"Segment"]
[]
[]
[null,null,null,"4. Import XBRL file"]
[null,null,null,"1. Now you can import and view previously generated XBRL files by clicking Import XBRL button on Genenral information sheet. "]
[]
[]
[null,null,null,"5. Steps for Filing Financial Results - Banking Format"]
[null,null,null,"I.  Fill up the data: Navigate to each field of every section in the sheet to provide applicable data in correct format.  (Formats will get reflected while filling data.)  \n   - Use paste special command to paste data from other sheet.\n   - Use \"Home\" button (cntrl + H) to toggle between the sheets."]
[null,null,null,"II. Validating Sheets:  Click on the ''Validate \"  button to ensure that the sheet has been properly filled and also data has been furnished in proper format. If there are some errors on the sheet, excel utility will prompt you about the same."]
[null,null,null,"III. Validate All Sheets:  Click on the ''Home\"  button. And then click on \"Validate All Sheet\" button to ensure that all sheets has been properly filled and validated successfully. If there are some errors on the sheet, excel utility will prompt you about the same and stop validation at the same time. After correction, once again follow the same procedure to validate all sheets."]
[null,null,null,"Excel Utility will not allow you to generate XBRL/XML until you rectify all errors. "]
[null,null,null,"IV. Generate XML :   Excel Utility will not allow you to generate XBRL/XML unless successful validation of all sheet is completed. Now click on 'Generate XML'' to generate XBRL/XML file. \n    - Save the XBRL/XML file in your desired folder in local system. "]
[null,null,null,"V. Generate Report :   Excel Utility will allow you to generate Report. Now click on 'Generate Report'' to generate html report.   \n     - Save the HTML Report file in your desired folder in local system.     \n     - To view HTML Report open \"Chrome Web Browser\" . \n     - To print report in PDF Format, Click on print button and save as PDF. "]
[null,null,null,"VI. Upload XML file to BSE Listing Center: For uploading the XBRL/XML file generated through  Utility, login to BSE Listing Center and upload generated xml file. On Upload screen provide the required information and browse to select XML file and submit the XML.\n"]
[]
[]
[null,null,null,"5. Fill up the Financial Results - Banking Format"]
[null,null,null,"1. Cells with red fonts indicate mandatory fields. "]
[null,null,null,"2. If mandatory field is left empty, then Utility will not allow you to proceed further for generating XML."]
[null,null,null,"3. You are not allowed to enter data in the Grey Cells."]
[null,null,null,"4. If fields are not applicable to your company then leave it blank. Do not insert Zero unless it is a mandatory field."]
[null,null,null,"5. Data provided must be in correct format, otherwise Utility will not allow you to proceed further for generating XML."]
[null,null,null,"6. Select data from \"Dropdown list\" wherever applicable. "]
[null,null,null,"7. Adding Notes:  Click on \"Add Text Block\" button to add notes "]

{"sheet":"General Info","index":1,"n_rows":71,"n_cols":85,"rows_kept":71,"cut":false,"hidden":false,"merged":[[21,5,22,7],[5,5,11,7],[4,3,4,7],[12,7,15,7],[27,5,27,7],[20,5,20,7],[17,5,17,7]]}
[]
[null,null,null,null,null,null,null,null,null,null,null,null,null,null,null,null,null,"Actual",null,"Audited"]
[null,null,null,null,null,null,null,null,null,null,null,null,null,null,null,null,"Consolidated","Thousands",null,"Unaudited"]
[null,null,null,null,null,null,null,null,null,null,null,null,null,null,null,null,"Standalone","Lakhs","Single segment",null,null,null,null,null,null,"Declaration of unmodified opinion","Statement on impact of audit qualification","Not applicable"]
[null,null,null,"General information about bank",null,null,null,null,null,null,null,null,null,null,null,null,null,"Millions","Multi segment","First quarter","Half yearly",null,null,null,null,"First quarter",null,null,null,"First quarter"]
[null,null,null,"Scrip code",null,null,null,null,null,null,null,null,null,null,null,null,null,"Billions","Geographical","Half yearly","Yearly",null,null,null,null,"Half yearly",null,null,null,"Half yearly"]
[null,null,null,"NSE Symbol",null,null,null,null,null,null,null,null,null,null,null,null,null,"Crores",null,"Third quarter","Fifth quarter",null,null,null,null,"Third quarter",null,null,null,"Third quarter"]
[null,null,null,"MSEI Symbol",null,null,null,null,null,null,null,null,null,null,null,null,"Equity",null,null,"Yearly","Sixth quarter","Cash Flow Direct",null,null,null,"Fourth quarter",null,null,null,"Fourth quarter"]
[null,null,null,"ISIN",null,null,null,null,null,null,null,null,null,null,null,null,"Debt securities and/or non-cumulative redeemable preference shares",null,null,"Fifth quarter",null,"Cash Flow Indirect",null,null,null,"Yearly",null,null,null,"Fifth quarter"]
[null,null,null,"Name of bank",null,null,null,null,null,null,null,null,null,null,null,null,"Equity and Debt",null,null,"Sixth quarter",null,null,null,null,null,null,null,null,null,"Yearly"]
[null,null,null,"Result Type","Banking Format",null,null,null,null,null,null,null,null,null,null,null,"00"]
[null,null,null,"Class of security",null,null,null,null,null,null,null,null,null,null,null,null,"01","01","2014"]
[null,null,null,"Date of start of financial year",null,null,null,null,null,null,null,null,null,null,null,null,"02","02","2015"]
[null,null,null,"Date of end of financial year",null,null,null,null,null,null,null,null,null,null,null,null,"03","03","2016"]
[null,null,null,"Date of board meeting when results were approved",null,null,null,null,null,null,null,null,null,null,null,null,"04","04","2017",null,null,null,null,null,null,12]
[null,null,null,"Date on which prior intimation of the meeting for considering financial results was informed to the exchange",null,null,null,null,null,null,null,null,null,null,null,null,"05","05",2018]
[null,null,null,"Description of presentation currency","INR",null,null,null,null,null,null,null,null,null,null,null,"06","06",2019,null,null,null,null,null,null,null,null,null,"Yes"]
[null,null,null,"Level of rounding used in financial results",null,"Reporting only in \"Lakhs\", \"Millions\", \"Billions\", \"Crores\" Allowed",null,null,null,null,null,null,null,null,null,null,"07","07",2020,null,null,null,null,null,null,null,null,null,"No"]
[null,null,null,"Reporting Quarter",null,null,null,null,null,null,null,null,null,null,null,null,"08","08",2021]
[null,null,null,"Nature of report standalone or consolidated",null,null,null,null,null,null,null,null,null,null,null,null,"09","09",2022]
[null,null,null,"Whether results are audited or unaudited",null,"For current quarter only",null,null,null,null,null,null,null,null,null,null,"10","10",2023]
[null,null,null,"Segment Reporting",null,null,null,null,null,null,null,null,null,null,null,null,"11","11",2024]
[null,null,null,"Description of single segment",null,null,null,null,null,null,null,null,null,null,null,null,"12","12",2025]
[null,null,null,"Start date and time of board meeting",null,null,null,"HH : MM",null,null,null,null,null,null,null,null,"13",null,2026,null,null,null,null,null,null,"Start date of board meeting",null,null,null,null,null,null,null,null,null,null,null,null,null,null,null,null,null,null,null,null,null,null,null,null,null,null,null,0,null,null,null,null,null,null,null,null,null,null,null,null,null,null,null,null,null,null,null,null,null,null,null,null,null,null,null,null,null,null," "]
[null,null,null,"End date and time of board meeting",null,null,null,"HH : MM",null,null,null,null,null,null,null,null,"14",null,2027,null,null,null,null,null,null,"End date of board meeting"]
[null,null,null,"Whether cash flow statement is applicable on company",null,null,null,null,null,null,null,null,null,null,null,null,"15",null,2028]
[null,null,null,"Type of cash flow statement",null,null,null,null,null,null,null,null,null,null,null,null,"16"]
[null,null,null,"Declaration of unmodified opinion or statement on impact of audit qualification",null,null,null,null,null,null,null,null,null,null,null,null,"17"]
[null,null,null,null,null,null,null,null,null,null,null,null,null,null,null,null,"18"]
[null,null,null,null,null,null,null,null,null,null,null,null,null,null,null,null,"19"]
[null,null,null,null,null,null,null,null,null,null,null,null,null,null,null,null,"20"]
[null,null,null,null,null,null,null,null,null,null,null,null,null,null,null,null,"21"]
[null,null,null,null,null,null,null,null,null,null,null,null,null,null,null,null,"22"]
[null,null,null,null,null,null,null,null,null,null,null,null,null,null,null,null,"23"]
[null,null,null,null,null,null,null,null,null,null,null,null,null,null,null,null,"24"]
[null,null,null,null,null,null,null,null,null,null,null,null,null,null,null,null,"25"]
[null,null,null,null,null,null,null,null,null,null,null,null,null,null,null,null,"26"]
[null,null,null,null,null,null,null,null,null,null,null,null,null,null,null,null,"27"]
[null,null,null,null,null,null,null,null,null,null,null,null,null,null,null,null,"28"]
[null,null,null,null,null,null,null,null,null,null,null,null,null,null,null,null,"29"]
[null,null,null,null,null,null,null,null,null,null,null,null,null,null,null,null,"30"]
[null,null,null,null,null,null,null,null,null,null,null,null,null,null,null,null,"31"]
[null,null,null,null,null,null,null,null,null,null,null,null,null,null,null,null,"32"]
[null,null,null,null,null,null,null,null,null,null,null,null,null,null,null,null,"33"]
[null,null,null,null,null,null,null,null,null,null,null,null,null,null,null,null,"34"]
[null,null,null,null,null,null,null,null,null,null,null,null,null,null,null,null,"35"]
[null,null,null,null,null,null,null,null,null,null,null,null,null,null,null,null,"36"]
[null,null,null,null,null,null,null,null,null,null,null,null,null,null,null,null,"37"]
[null,null,null,null,null,null,null,null,null,null,null,null,null,null,null,null,"38"]
[null,null,null,null,null,null,null,null,null,null,null,null,null,null,null,null,"39"]
[null,null,null,null,null,null,null,null,null,null,null,null,null,null,null,null,"40"]
[null,null,null,null,null,null,null,null,null,null,null,null,null,null,null,null,"41"]
[null,null,null,null,null,null,null,null,null,null,null,null,null,null,null,null,"42"]
[null,null,null,null,null,null,null,null,null,null,null,null,null,null,null,null,"43"]
[null,null,null,null,null,null,null,null,null,null,null,null,null,null,null,null,"44"]
[null,null,null,null,null,null,null,null,null,null,null,null,null,null,null,null,"45"]
[null,null,null,null,null,null,null,null,null,null,null,null,null,null,null,null,"46"]
[null,null,null,null,null,null,null,null,null,null,null,null,null,null,null,null,"47"]
[null,null,null,null,null,null,null,null,null,null,null,null,null,null,null,null,"48"]
[null,null,null,null,null,null,null,null,null,null,null,null,null,null,null,null,"49"]
[null,null,null,null,null,null,null,null,null,null,null,null,null,null,null,null,"50"]
[null,null,null,null,null,null,null,null,null,null,null,null,null,null,null,null,"51"]
[null,null,null,null,null,null,null,null,null,null,null,null,null,null,null,null,"52"]
[null,null,null,null,null,null,null,null,null,null,null,null,null,null,null,null,"53"]
[null,null,null,null,null,null,null,null,null,null,null,null,null,null,null,null,"54"]
[null,null,null,null,null,null,null,null,null,null,null,null,null,null,null,null,"55"]
[null,null,null,null,null,null,null,null,null,null,null,null,null,null,null,null,"56"]
[null,null,null,null,null,null,null,null,null,null,null,null,null,null,null,null,"57"]
[null,null,null,null,null,null,null,null,null,null,null,null,null,null,null,null,"58"]
[null,null,null,null,null,null,null,null,null,null,null,null,null,null,null,null,"59"]
[null,null,null,null,null,null,null,null,null,null,null,null,null,null,null,null,"60"]

{"sheet":"Financial Results","index":2,"n_rows":76,"n_cols":19,"rows_kept":76,"cut":false,"hidden":false,"merged":[[8,3,8,4],[24,5,24,6],[7,3,7,6],[14,5,14,6],[22,5,22,6],[13,4,13,6],[63,5,63,6],[66,5,66,6],[69,5,69,6],[26,5,26,6],[27,5,27,6],[53,5,53,6],[58,5,58,6],[60,5,60,6]]}
["c"]
[null,null,null,null,null,null,"Standalone",null,null,null,"Audited"]
[null,null,null,null,null,null,"Consolidated",null,null,null,"Unaudited"]
[]
[]
[null,null,null,null,null,null,"."]
[null,null,null,null,null,null,null,null,null," "]
[null,null,null,"Financial Results – Banking"]
[null,null,null,"Particulars",null,"3 months/ 6 months ended         (dd-mm-yyyy)","Year to date figures for current period ended                                 (dd-mm-yyyy)"]
[null,null,null,"A","Date of start of reporting period"]
[null,null,null,"B","Date of end of reporting period"]
[null,null,null,"C","Whether results are audited or unaudited",{"$f":"+IF(COUNTA('General Info'!E21),'General Info'!E21,\"\")","v":""},{"$f":"+IF(COUNTA('General Info'!E21),'General Info'!E21,\"\")","v":""}]
[null,null,null,"D","Nature of report standalone or consolidated",{"$f":"+IF(COUNTA('General Info'!E20),'General Info'!E20,\"\")","v":""},{"$f":"+IF(COUNTA('General Info'!E20),'General Info'!E20,\"\")","v":""}]
[null,null,null,null,"Blue color marked fields are non-mandatory.                                                                                                                                                                                     For Consolidated Results, if the company has no figures for 3 months / 6 months ended, in such case zero shall be inserted in the said column."]
[null,null,null,1,"Interest earned "]
[null,null,null,null,"Interest or discount on advances or bills",null,{"$f":"+IF(COUNTA('Financial Results'!F16),+'Financial Results'!F16,\"\")","v":""},null,null,null,null,null,null,null,null,null,null,null,{"$f":"+IF(COUNTA('Financial Results'!F16),+'Financial Results'!F16,\"\")","v":""}]
[null,null,null,null,"Income on investments",null,{"$f":"+IF(COUNTA('Financial Results'!F17),+'Financial Results'!F17,\"\")","v":""},null,null,null,null,null,null,null,null,null,null,null,{"$f":"+IF(COUNTA('Financial Results'!F17),+'Financial Results'!F17,\"\")","v":""}]
[null,null,null,null,"Interest on balances with reserve bank of India and other inter bank funds",null,{"$f":"+IF(COUNTA('Financial Results'!F18),+'Financial Results'!F18,\"\")","v":""},null,null,null,null,null,null,null,null,null,null,null,{"$f":"+IF(COUNTA('Financial Results'!F18),+'Financial Results'!F18,\"\")","v":""}]
[null,null,null,null,"Others",null,{"$f":"+IF(COUNTA('Financial Results'!F19),+'Financial Results'!F19,\"\")","v":""},null,null,null,null,null,null,null,null,null,null,null,{"$f":"+IF(COUNTA('Financial Results'!F19),+'Financial Results'!F19,\"\")","v":""}]
[null,null,null,null,"Total interest earned",{"$f":"+IF(COUNT(F16:F19),ROUND(SUM(F16:F19),3),\"\")","v":""},{"$f":"+IF(COUNT(G16:G19),ROUND(SUM(G16:G19),3),\"\")","v":""},null,null,null,null,null,null,null,null,null,null,null,{"$f":"+IF(COUNTA('Financial Results'!F20),+'Financial Results'!F20,\"\")","v":""}]
[null,null,null,2,"Other income",null,{"$f":"+IF(COUNTA('Financial Results'!F21),+'Financial Results'!F21,\"\")","v":""},null,null,null,null,null,null,null,null,null,null,null,{"$f":"+IF(COUNTA('Financial Results'!F21),+'Financial Results'!F21,\"\")","v":""}]
[null,null,null,3,"Total income",{"$f":"+IF(COUNT(F20:F21),SUM(F20:F21),\"\")","v":""},{"$f":"+IF(COUNT(G20:G21),SUM(G20:G21),\"\")","v":""},null,null,null,null,null,null,null,null,null,null,null,{"$f":"+IF(COUNTA('Financial Results'!F22),+'Financial Results'!F22,\"\")","v":""}]
[null,null,null,null,"Expenses ",null,null,null,null,null,null,null,null,null,null,null,null,null,{"$f":"+IF(COUNTA('Financial Results'!F23),+'Financial Results'!F23,\"\")","v":""}]
[null,null,null,4,"Interest expended",null,{"$f":"+IF(COUNTA('Financial Results'!F24),+'Financial Results'!F24,\"\")","v":""},null,null,null,null,null,null,null,null,null,null,null,{"$f":"+IF(COUNTA('Financial Results'!F24),+'Financial Results'!F24,\"\")","v":""}]
[null,null,null,5,"Operating expenses ",null,null,null,null,null,null,null,null,null,null,null,null,null,{"$f":"+IF(COUNTA('Financial Results'!F25),+'Financial Results'!F25,\"\")","v":""}]
[null,null,null,"(i)","Employees cost",null,{"$f":"+IF(COUNTA('Financial Results'!F26),+'Financial Results'!F26,\"\")","v":""},null,null,null,null,null,null,null,null,null,null,null,{"$f":"+IF(COUNTA('Financial Results'!F26),+'Financial Results'!F26,\"\")","v":""}]
[null,null,null,"(ii)","Details of other operating expenses",null,null,null,null,null,null,null,null,null,null,null,null,null,{"$f":"+IF(COUNTA('Financial Results'!F27),+'Financial Results'!F27,\"\")","v":""}]
[null,null,null,null,"Description of other operating expenses",null,null,null,null,null,null,null,null,null,null,null,null,null,{"$f":"+IF(COUNTA('Financial Results'!F28),+'Financial Results'!F28,\"\")","v":""}]
[null,null,null,1,null,null,{"$f":"+IF(COUNTA('Financial Results'!F29),+'Financial Results'!F29,\"\")","v":""},null,null,null,null,null,null,null,null,null,null,null,{"$f":"+IF(COUNTA('Financial Results'!F29),+'Financial Results'!F29,\"\")","v":""}]
[null,null,null,2,null,null,{"$f":"+IF(COUNTA('Financial Results'!F30),+'Financial Results'!F30,\"\")","v":""},null,null,null,null,null,null,null,null,null,null,null,{"$f":"+IF(COUNTA('Financial Results'!F30),+'Financial Results'!F30,\"\")","v":""}]
[null,null,null,3,null,null,{"$f":"+IF(COUNTA('Financial Results'!F31),+'Financial Results'!F31,\"\")","v":""},null,null,null,null,null,null,null,null,null,null,null,{"$f":"+IF(COUNTA('Financial Results'!F31),+'Financial Results'!F31,\"\")","v":""}]
[null,null,null,4,null,null,{"$f":"+IF(COUNTA('Financial Results'!F32),+'Financial Results'!F32,\"\")","v":""},null,null,null,null,null,null,null,null,null,null,null,{"$f":"+IF(COUNTA('Financial Results'!F32),+'Financial Results'!F32,\"\")","v":""}]
[null,null,null,5,null,null,{"$f":"+IF(COUNTA('Financial Results'!F33),+'Financial Results'!F33,\"\")","v":""},null,null,null,null,null,null,null,null,null,null,null,{"$f":"+IF(COUNTA('Financial Results'!F33),+'Financial Results'!F33,\"\")","v":""}]
[null,null,null,6,null,null,{"$f":"+IF(COUNTA('Financial Results'!F34),+'Financial Results'!F34,\"\")","v":""},null,null,null,null,null,null,null,null,null,null,null,{"$f":"+IF(COUNTA('Financial Results'!F34),+'Financial Results'!F34,\"\")","v":""}]
[null,null,null,7,null,null,{"$f":"+IF(COUNTA('Financial Results'!F35),+'Financial Results'!F35,\"\")","v":""},null,null,null,null,null,null,null,null,null,null,null,{"$f":"+IF(COUNTA('Financial Results'!F35),+'Financial Results'!F35,\"\")","v":""}]
[null,null,null,8,null,null,{"$f":"+IF(COUNTA('Financial Results'!F36),+'Financial Results'!F36,\"\")","v":""},null,null,null,null,null,null,null,null,null,null,null,{"$f":"+IF(COUNTA('Financial Results'!F36),+'Financial Results'!F36,\"\")","v":""}]
[null,null,null,9,null,null,{"$f":"+IF(COUNTA('Financial Results'!F37),+'Financial Results'!F37,\"\")","v":""},null,null,null,null,null,null,null,null,null,null,null,{"$f":"+IF(COUNTA('Financial Results'!F37),+'Financial Results'!F37,\"\")","v":""}]
[null,null,null,10,null,null,{"$f":"+IF(COUNTA('Financial Results'!F38),+'Financial Results'!F38,\"\")","v":""},null,null,null,null,null,null,null,null,null,null,null,{"$f":"+IF(COUNTA('Financial Results'!F38),+'Financial Results'!F38,\"\")","v":""}]
[null,null,null,null,"Total other operating Expenses",{"$f":"+IF(COUNT(F29:F38),SUM(F29:F38),\"\")","v":""},{"$f":"+IF(COUNT(G29:G38),SUM(G29:G38),\"\")","v":""},null,null,null,null,null,null,null,null,null,null,null,{"$f":"+IF(COUNTA('Financial Results'!F39),+'Financial Results'!F39,\"\")","v":""}]
[null,null,null,null,"Total Operating Expenses",{"$f":"+IF(COUNT(F39,F26),SUM(F39,F26),\"\")","v":""},{"$f":"+IF(COUNT(G39,G26),SUM(G39,G26),\"\")","v":""},null,null,null,null,null,null,null,null,null,null,null,{"$f":"+IF(COUNTA('Financial Results'!F40),+'Financial Results'!F40,\"\")","v":""}]
[null,null,null,6,"Total expenditure excluding provisions and contingencies",{"$f":"+IF(COUNT(F40,F24),SUM(F40,F24),\"\")","v":""},{"$f":"+IF(COUNT(G40,G24),SUM(G40,G24),\"\")","v":""},null,null,null,null,null,null,null,null,null,null,null,{"$f":"+IF(COUNTA('Financial Results'!F41),+'Financial Results'!F41,\"\")","v":""}]
[null,null,null,7,"Operating profit before provision and contingencies",{"$f":"+IF(COUNT(F41,F22),SUM(F22)-SUM(F41),\"\")","v":""},{"$f":"+IF(COUNT(G41,G22),SUM(G22)-SUM(G41),\"\")","v":""},null,null,null,null,null,null,null,null,null,null,null,{"$f":"+IF(COUNTA('Financial Results'!F42),+'Financial Results'!F42,\"\")","v":""}]
[null,null,null,8,"Provisions other than tax and contingencies",null,{"$f":"+IF(COUNTA('Financial Results'!F43),+'Financial Results'!F43,\"\")","v":""},null,null,null,null,null,null,null,null,null,null,null,{"$f":"+IF(COUNTA('Financial Results'!F43),+'Financial Results'!F43,\"\")","v":""}]
[null,null,null,9,"Exceptional items",null,{"$f":"+IF(COUNTA('Financial Results'!F44),+'Financial Results'!F44,\"\")","v":""},null,null,null,null,null,null,null,null,null,null,null,{"$f":"+IF(COUNTA('Financial Results'!F44),+'Financial Results'!F44,\"\")","v":""}]
[null,null,null,10,"Total profit (loss) from ordinary activities before tax",{"$f":"+IF(COUNT(F42,F43,F44),SUM(F42)-SUM(F43)+SUM(F44),\"\")","v":""},{"$f":"+IF(COUNT(G42,G43,G44),SUM(G42)-SUM(G43)+SUM(G44),\"\")","v":""},null,null,null,null,null,null,null,null,null,null,null,{"$f":"+IF(COUNTA('Financial Results'!F45),+'Financial Results'!F45,\"\")","v":""}]
[null,null,null,11,"Provision for Tax",null,{"$f":"+IF(COUNTA('Financial Results'!F46),+'Financial Results'!F46,\"\")","v":""},null,null,null,null,null,null,null,null,null,null,null,{"$f":"+IF(COUNTA('Financial Results'!F46),+'Financial Results'!F46,\"\")","v":""}]
[null,null,null,12,"Net profit (loss) from ordinary activities after tax",{"$f":"+IF(COUNT(F46,F45),SUM(F45)-SUM(F46),\"\")","v":""},{"$f":"+IF(COUNT(G46,G45),SUM(G45)-SUM(G46),\"\")","v":""},null,null,null,null,null,null,null,null,null,null,null,{"$f":"+IF(COUNTA('Financial Results'!F47),+'Financial Results'!F47,\"\")","v":""}]
[null,null,null,13,"Extraordinary items net of tax expenses",null,{"$f":"+IF(COUNTA('Financial Results'!F48),+'Financial Results'!F48,\"\")","v":""},null,null,null,null,null,null,null,null,null,null,null,{"$f":"+IF(COUNTA('Financial Results'!F48),+'Financial Results'!F48,\"\")","v":""}]
[null,null,null,14,"Net profit (loss) for the period",{"$f":"+IF(COUNT(F47:F48),SUM(F47:F48),\"\")","v":""},{"$f":"+IF(COUNT(G47:G48),SUM(G47:G48),\"\")","v":""},null,null,null,null,null,null,null,null,null,null,null,{"$f":"+IF(COUNTA('Financial Results'!F49),+'Financial Results'!F49,\"\")","v":""}]
[null,null,null,15,"Share of profit (loss) of associates",null,{"$f":"+IF(COUNTA('Financial Results'!F50),+'Financial Results'!F50,\"\")","v":""},null,null,null,null,null,null,null,null,null,null,null,{"$f":"+IF(COUNTA('Financial Results'!F50),+'Financial Results'!F50,\"\")","v":""}]
[null,null,null,16,"Profit (loss) of minority interest",null,{"$f":"+IF(COUNTA('Financial Results'!F51),+'Financial Results'!F51,\"\")","v":""},null,null,null,null,null,null,null,null,null,null,null,{"$f":"+IF(COUNTA('Financial Results'!F51),+'Financial Results'!F51,\"\")","v":""}]
[null,null,null,17,"Net Profit (loss) after taxes minority interest and share of profit (loss) of associates",{"$f":"+IF(COUNT(F49:F51),ROUND(SUM(F49)+SUM(F50)-SUM(F51),3),\"\")","v":""},{"$f":"+IF(COUNT(G49:G51),ROUND(SUM(G49)+SUM(G50)-SUM(G51),3),\"\")","v":""},null,null,null,null,null,null,null,null,null,null,null,{"$f":"+IF(COUNTA('Financial Results'!F52),+'Financial Results'!F52,\"\")","v":""}]
[null,null,null,null,null,null,null,null,null,null,null,null,null,null,null,null,null,null,{"$f":"+IF(COUNTA('Financial Results'!F53),+'Financial Results'!F53,\"\")","v":""}]
[null,null,null,18,"Details of equity share capital [Abstract]",null,null,null,null,null,null,null,null,null,null,null,null,null,{"$f":"+IF(COUNTA('Financial Results'!F54),+'Financial Results'!F54,\"\")","v":""}]
[null,null,null,null,"Paid-up equity share capital",null,{"$f":"+IF(COUNTA('Financial Results'!F55),+'Financial Results'!F55,\"\")","v":""},null,null,null,null,null,null,null,null,null,null,null,{"$f":"+IF(COUNTA('Financial Results'!F55),+'Financial Results'!F55,\"\")","v":""}]
[null,null,null,null,"Face value of equity share capital",null,{"$f":"+IF(COUNTA('Financial Results'!F56),+'Financial Results'!F56,\"\")","v":""},null,null,null,null,null,null,null,null,null,null,null,{"$f":"+IF(COUNTA('Financial Results'!F56),+'Financial Results'!F56,\"\")","v":""}]
[null,null,null,19,"Reserve excluding revaluation reserves (as per balance sheet of previous accounting year)",null,null,null,null,null,null,null,null,null,null,null,null,null,{"$f":"+IF(COUNTA('Financial Results'!F57),+'Financial Results'!F57,\"\")","v":""}]
[null,null,null,null,null,null,null,null,null,null,null,null,null,null,null,null,null,null,{"$f":"+IF(COUNTA('Financial Results'!F58),+'Financial Results'!F58,\"\")","v":""}]
[null,null,null,20,"Analytical ratios",null,null,null,null,null,null,null,null,null,null,null,null,null,{"$f":"+IF(COUNTA('Financial Results'!F59),+'Financial Results'!F59,\"\")","v":""}]
[null,null,null,"(i)","Percentage of share held by government of India",null,{"$f":"+IF(COUNTA('Financial Results'!F60),+'Financial Results'!F60,\"\")","v":""},null,null,null,null,null,null,null,null,null,null,null,{"$f":"+IF(COUNTA('Financial Results'!F60),+'Financial Results'!F60,\"\")","v":""}]
[null,null,null,"(ii)","Capital adequacy ratio",null,null,null,null,null,null,null,null,null,null,null,null,null,{"$f":"+IF(COUNTA('Financial Results'!F61),+'Financial Results'!F61,\"\")","v":""}]
[null,null,null,null,"CET 1 ratio",null,{"$f":"+IF(COUNTA('Financial Results'!F62),+'Financial Results'!F62,\"\")","v":""},null,null,null,null,null,null,null,null,null,null,null,{"$f":"+IF(COUNTA('Financial Results'!F62),+'Financial Results'!F62,\"\")","v":""}]
[null,null,null,null,"Additional Tier 1 ratio",null,{"$f":"+IF(COUNTA('Financial Results'!F63),+'Financial Results'!F63,\"\")","v":""},null,null,null,null,null,null,null,null,null,null,null,{"$f":"+IF(COUNTA('Financial Results'!F63),+'Financial Results'!F63,\"\")","v":""}]
[null,null,null,"(iii) (a)","Earnings per share before extraordinary items",null,null,null,null,null,null,null,null,null,null,null,null,null,{"$f":"+IF(COUNTA('Financial Results'!F64),+'Financial Results'!F64,\"\")","v":""}]
[null,null,null,null,"Basic earnings per share before extraordinary items",null,{"$f":"+IF(COUNTA('Financial Results'!F65),+'Financial Results'!F65,\"\")","v":""},null,null,null,null,null,null,null,null,null,null,null,{"$f":"+IF(COUNTA('Financial Results'!F65),+'Financial Results'!F65,\"\")","v":""}]
[null,null,null,null,"Diluted earnings per share before extraordinary items",null,{"$f":"+IF(COUNTA('Financial Results'!F66),+'Financial Results'!F66,\"\")","v":""},null,null,null,null,null,null,null,null,null,null,null,{"$f":"+IF(COUNTA('Financial Results'!F66),+'Financial Results'!F66,\"\")","v":""}]
[null,null,null,"(iii) (b)","Earnings per share after extraordinary items",null,null,null,null,null,null,null,null,null,null,null,null,null,{"$f":"+IF(COUNTA('Financial Results'!F67),+'Financial Results'!F67,\"\")","v":""}]
[null,null,null,null,"Basic earnings per share after extraordinary items",null,{"$f":"+IF(COUNTA('Financial Results'!F68),+'Financial Results'!F68,\"\")","v":""},null,null,null,null,null,null,null,null,null,null,null,{"$f":"+IF(COUNTA('Financial Results'!F68),+'Financial Results'!F68,\"\")","v":""}]
[null,null,null,null,"Diluted earnings per share after extraordinary items",null,{"$f":"+IF(COUNTA('Financial Results'!F69),+'Financial Results'!F69,\"\")","v":""},null,null,null,null,null,null,null,null,null,null,null,{"$f":"+IF(COUNTA('Financial Results'!F69),+'Financial Results'!F69,\"\")","v":""}]
[null,null,null,"(iv)","NPA Ratios",null,null,null,null,null,null,null,null,null,null,null,null,null,{"$f":"+IF(COUNTA('Financial Results'!F70),+'Financial Results'!F70,\"\")","v":""}]
[null,null,null,null,"Amount of gross non-performing assets",null,{"$f":"+IF(COUNTA('Financial Results'!F71),+'Financial Results'!F71,\"\")","v":""},null,null,null,null,null,null,null,null,null,null,null,{"$f":"+IF(COUNTA('Financial Results'!F71),+'Financial Results'!F71,\"\")","v":""}]
[null,null,null,null,"Amount of net non-performing assets",null,{"$f":"+IF(COUNTA('Financial Results'!F72),+'Financial Results'!F72,\"\")","v":""},null,null,null,null,null,null,null,null,null,null,null,{"$f":"+IF(COUNTA('Financial Results'!F72),+'Financial Results'!F72,\"\")","v":""}]
[null,null,null,null,"% of gross NPAs",null,{"$f":"+IF(COUNTA('Financial Results'!F73),+'Financial Results'!F73,\"\")","v":""},null,null,null,null,null,null,null,null,null,null,null,{"$f":"+IF(COUNTA('Financial Results'!F73),+'Financial Results'!F73,\"\")","v":""}]
[null,null,null,null,"% of net NPAs",null,{"$f":"+IF(COUNTA('Financial Results'!F74),+'Financial Results'!F74,\"\")","v":""},null,null,null,null,null,null,null,null,null,null,null,{"$f":"+IF(COUNTA('Financial Results'!F74),+'Financial Results'!F74,\"\")","v":""}]
[null,null,null,null,"Return on assets",null,{"$f":"+IF(COUNTA('Financial Results'!F75),+'Financial Results'!F75,\"\")","v":""},null,null,null,null,null,null,null,null,null,null,null,{"$f":"+IF(COUNTA('Financial Results'!F75),+'Financial Results'!F75,\"\")","v":""}]
[null,null,null,21,"Disclosure of notes on financial results by banks"]

{"sheet":"Asset Liabilities","index":3,"n_rows":30,"n_cols":10,"rows_kept":30,"cut":false,"hidden":false,"merged":[[13,3,13,5],[7,3,7,5],[8,3,8,4],[9,3,9,4],[10,3,10,4],[11,3,11,4],[12,3,12,4]]}
[null,null,null,null,null,null,null,122]
[null,null,null,null,null,null,null,null,null,"Audited"]
[null,null,null,null,null,null,null,null,null,"Unaudited"]
[]
[]
[]
[]
[null,null,null,"Statement of Asset and Liabilities"]
[null,null,null,"Particulars",null,"Current year ended        (dd-mm-yyyy)"]
[null,null,null,"Date of start of reporting period"]
[null,null,null,"Date of end of reporting period"]
[null,null,null,"Whether results are audited or unaudited",null,{"$f":"+IF(COUNTA('General Info'!E21),'General Info'!E21,\"\")","v":""}]
[null,null,null,"Nature of report standalone or consolidated",null,{"$f":"+IF(COUNTA('General Info'!E20),'General Info'!E20,\"\")","v":""}]
[]
[null,null,null,1,"Capital and liabilities"]
[null,null,null,null,"Capital "]
[null,null,null,null,"Reserves and surplus "]
[null,null,null,null,"Deposits "]
[null,null,null,null,"Borrowings "]
[null,null,null,null,"Other liabilities and provisions "]
[null,null,null,null,"Total Capital Liabilities",{"$f":"+IF(COUNT(F16:F20),SUM(F16:F20),\"\")","v":""}]
[null,null,null,2,"ASSETS "]
[null,null,null,null,"Cash and Balances with Reserve Bank of India "]
[null,null,null,null,"Balances with Banks and money at call and short notice "]
[null,null,null,null,"Investments "]
[null,null,null,null,"Advances "]
[null,null,null,null,"Fixed Assets "]
[null,null,null,null,"Other Assets "]
[null,null,null,null,"Total Assets",{"$f":"+IF(COUNT(F23:F28),SUM(F23:F28),\"\")","v":""}]
[null,null,null,null,"Disclosure of notes on assets and liabilities"]

{"sheet":"TextBlock","index":4,"n_rows":0,"n_cols":0,"rows_kept":0,"cut":false,"hidden":true,"merged":[]}

{"sheet":"Segment","index":5,"n_rows":99,"n_cols":19,"rows_kept":99,"cut":false,"hidden":false,"merged":[[77,5,77,6],[78,5,78,6],[7,3,7,6],[13,5,13,6],[14,5,14,6],[34,5,34,6],[35,5,35,6],[56,5,56,6],[57,5,57,6],[8,3,8,4],[9,3,9,4],[10,3,10,4],[11,3,11,4],[12,3,12,4]]}
[null,null,null,null,null,null,null,null,121]
[null,null,null,null,null,null,"Standalone",null,null,null,"Audited"]
[null,null,null,null,null,null,"Consolidated",null,null,null,"Unaudited"]
[]
[]
[]
[]
[null,null,null,"Format for Reporting Segment wise Revenue, Results and Capital Employed along with the company results"]
[null,null,null,"Particulars",null,"3 months/ 6 months ended (dd-mm-yyyy)","Year to date figures for current period ended                (dd-mm-yyyy)"]
[null,null,null,"Date of start of reporting period"]
[null,null,null,"Date of end of reporting period"]
[null,null,null,"Whether results are audited or unaudited",null,{"$f":"+IF(COUNTA('General Info'!E21),'General Info'!E21,\"\")","v":""},{"$f":"+IF(COUNTA('General Info'!E21),'General Info'!E21,\"\")","v":""}]
[null,null,null,"Nature of report standalone or consolidated",null,{"$f":"+IF(COUNTA('General Info'!$E$20),'General Info'!$E$20,\"\")","v":""},{"$f":"+IF(COUNTA('General Info'!$E$20),'General Info'!$E$20,\"\")","v":""}]
[null,null,null,1,"Segment Revenue (Income) "]
[null,null,null,null,"(net sale/income from each segment should be disclosed)"]
[null,null,null,1,null,null,{"$f":"+IF(COUNTA(Segment!F16),+Segment!F16,\"\")","v":""},null,null,null,null,null,null,null,null,null,null,null,{"$f":"+IF(COUNTA(Segment!F16),+Segment!F16,\"\")","v":""}]
[null,null,null,2,null,null,{"$f":"+IF(COUNTA(Segment!F17),+Segment!F17,\"\")","v":""},null,null,null,null,null,null,null,null,null,null,null,{"$f":"+IF(COUNTA(Segment!F17),+Segment!F17,\"\")","v":""}]
[null,null,null,3,null,null,{"$f":"+IF(COUNTA(Segment!F18),+Segment!F18,\"\")","v":""},null,null,null,null,null,null,null,null,null,null,null,{"$f":"+IF(COUNTA(Segment!F18),+Segment!F18,\"\")","v":""}]
[null,null,null,4,null,null,{"$f":"+IF(COUNTA(Segment!F19),+Segment!F19,\"\")","v":""},null,null,null,null,null,null,null,null,null,null,null,{"$f":"+IF(COUNTA(Segment!F19),+Segment!F19,\"\")","v":""}]
[null,null,null,5,null,null,{"$f":"+IF(COUNTA(Segment!F20),+Segment!F20,\"\")","v":""},null,null,null,null,null,null,null,null,null,null,null,{"$f":"+IF(COUNTA(Segment!F20),+Segment!F20,\"\")","v":""}]
[null,null,null,6,null,null,{"$f":"+IF(COUNTA(Segment!F21),+Segment!F21,\"\")","v":""},null,null,null,null,null,null,null,null,null,null,null,{"$f":"+IF(COUNTA(Segment!F21),+Segment!F21,\"\")","v":""}]
[null,null,null,7,null,null,{"$f":"+IF(COUNTA(Segment!F22),+Segment!F22,\"\")","v":""},null,null,null,null,null,null,null,null,null,null,null,{"$f":"+IF(COUNTA(Segment!F22),+Segment!F22,\"\")","v":""}]
[null,null,null,8,null,null,{"$f":"+IF(COUNTA(Segment!F23),+Segment!F23,\"\")","v":""},null,null,null,null,null,null,null,null,null,null,null,{"$f":"+IF(COUNTA(Segment!F23),+Segment!F23,\"\")","v":""}]
[null,null,null,9,null,null,{"$f":"+IF(COUNTA(Segment!F24),+Segment!F24,\"\")","v":""},null,null,null,null,null,null,null,null,null,null,null,{"$f":"+IF(COUNTA(Segment!F24),+Segment!F24,\"\")","v":""}]
[null,null,null,10,null,null,{"$f":"+IF(COUNTA(Segment!F25),+Segment!F25,\"\")","v":""},null,null,null,null,null,null,null,null,null,null,null,{"$f":"+IF(COUNTA(Segment!F25),+Segment!F25,\"\")","v":""}]
[null,null,null,11,null,null,{"$f":"+IF(COUNTA(Segment!F26),+Segment!F26,\"\")","v":""},null,null,null,null,null,null,null,null,null,null,null,{"$f":"+IF(COUNTA(Segment!F26),+Segment!F26,\"\")","v":""}]
[null,null,null,12,null,null,{"$f":"+IF(COUNTA(Segment!F27),+Segment!F27,\"\")","v":""},null,null,null,null,null,null,null,null,null,null,null,{"$f":"+IF(COUNTA(Segment!F27),+Segment!F27,\"\")","v":""}]
[null,null,null,13,null,null,{"$f":"+IF(COUNTA(Segment!F28),+Segment!F28,\"\")","v":""},null,null,null,null,null,null,null,null,null,null,null,{"$f":"+IF(COUNTA(Segment!F28),+Segment!F28,\"\")","v":""}]
[null,null,null,14,null,null,{"$f":"+IF(COUNTA(Segment!F29),+Segment!F29,\"\")","v":""},null,null,null,null,null,null,null,null,null,null,null,{"$f":"+IF(COUNTA(Segment!F29),+Segment!F29,\"\")","v":""}]
[null,null,null,15,null,null,{"$f":"+IF(COUNTA(Segment!F30),+Segment!F30,\"\")","v":""},null,null,null,null,null,null,null,null,null,null,null,{"$f":"+IF(COUNTA(Segment!F30),+Segment!F30,\"\")","v":""}]
[null,null,null,null,"Total Segment Revenue",{"$f":"+IF(COUNT(F16:F30),SUM(F16:F30),\"\")","v":""},{"$f":"+IF(COUNT(G16:G30),SUM(G16:G30),\"\")","v":""},null,null,null,null,null,null,null,null,null,null,null,{"$f":"+IF(COUNTA(Segment!F31),+Segment!F31,\"\")","v":""}]
[null,null,null,null,"Less: Inter segment revenue",null,{"$f":"+IF(COUNTA(Segment!F32),+Segment!F32,\"\")","v":""},null,null,null,null,null,null,null,null,null,null,null,{"$f":"+IF(COUNTA(Segment!F32),+Segment!F32,\"\")","v":""}]
[null,null,null,null,"Income from operations",{"$f":"+IF(COUNT(F31:F32),SUM(F31)-SUM(F32),\"\")","v":""},{"$f":"+IF(COUNT(G31:G32),SUM(G31)-SUM(G32),\"\")","v":""},null,null,null,null,null,null,null,null,null,null,null,{"$f":"+IF(COUNTA(Segment!F33),+Segment!F33,\"\")","v":""}]
[null,null,null,null,null,null,null,null,null,null,null,null,null,null,null,null,null,null,{"$f":"+IF(COUNTA(Segment!F34),+Segment!F34,\"\")","v":""}]
[null,null,null,2,"Segment Result",null,null,null,null,null,null,null,null,null,null,null,null,null,{"$f":"+IF(COUNTA(Segment!F35),+Segment!F35,\"\")","v":""}]
[null,null,null,null,"Profit (+) / Loss (-) before tax and interest from each segment",null,null,null,null,null,null,null,null,null,null,null,null,null,{"$f":"+IF(COUNTA(Segment!F36),+Segment!F36,\"\")","v":""}]
[null,null,null,1,{"$f":"+IF(COUNTA(E16),+E16,\"\")","v":""},null,{"$f":"+IF(COUNTA(Segment!F37),+Segment!F37,\"\")","v":""},null,null,null,null,null,null,null,null,null,null,null,{"$f":"+IF(COUNTA(Segment!F37),+Segment!F37,\"\")","v":""}]
[null,null,null,2,{"$f":"+IF(COUNTA(E17),+E17,\"\")","v":""},null,{"$f":"+IF(COUNTA(Segment!F38),+Segment!F38,\"\")","v":""},null,null,null,null,null,null,null,null,null,null,null,{"$f":"+IF(COUNTA(Segment!F38),+Segment!F38,\"\")","v":""}]
[null,null,null,3,"",null,{"$f":"+IF(COUNTA(Segment!F39),+Segment!F39,\"\")","v":""},null,null,null,null,null,null,null,null,null,null,null,{"$f":"+IF(COUNTA(Segment!F39),+Segment!F39,\"\")","v":""}]
[null,null,null,4,"",null,{"$f":"+IF(COUNTA(Segment!F40),+Segment!F40,\"\")","v":""},null,null,null,null,null,null,null,null,null,null,null,{"$f":"+IF(COUNTA(Segment!F40),+Segment!F40,\"\")","v":""}]
[null,null,null,5,"",null,{"$f":"+IF(COUNTA(Segment!F41),+Segment!F41,\"\")","v":""},null,null,null,null,null,null,null,null,null,null,null,{"$f":"+IF(COUNTA(Segment!F41),+Segment!F41,\"\")","v":""}]
[null,null,null,6,"",null,{"$f":"+IF(COUNTA(Segment!F42),+Segment!F42,\"\")","v":""},null,null,null,null,null,null,null,null,null,null,null,{"$f":"+IF(COUNTA(Segment!F42),+Segment!F42,\"\")","v":""}]
[null,null,null,7,"",null,{"$f":"+IF(COUNTA(Segment!F43),+Segment!F43,\"\")","v":""},null,null,null,null,null,null,null,null,null,null,null,{"$f":"+IF(COUNTA(Segment!F43),+Segment!F43,\"\")","v":""}]
[null,null,null,8,"",null,{"$f":"+IF(COUNTA(Segment!F44),+Segment!F44,\"\")","v":""},null,null,null,null,null,null,null,null,null,null,null,{"$f":"+IF(COUNTA(Segment!F44),+Segment!F44,\"\")","v":""}]
[null,null,null,9,"",null,{"$f":"+IF(COUNTA(Segment!F45),+Segment!F45,\"\")","v":""},null,null,null,null,null,null,null,null,null,null,null,{"$f":"+IF(COUNTA(Segment!F45),+Segment!F45,\"\")","v":""}]
[null,null,null,10,"",null,{"$f":"+IF(COUNTA(Segment!F46),+Segment!F46,\"\")","v":""},null,null,null,null,null,null,null,null,null,null,null,{"$f":"+IF(COUNTA(Segment!F46),+Segment!F46,\"\")","v":""}]
[null,null,null,11,"",null,{"$f":"+IF(COUNTA(Segment!F47),+Segment!F47,\"\")","v":""},null,null,null,null,null,null,null,null,null,null,null,{"$f":"+IF(COUNTA(Segment!F47),+Segment!F47,\"\")","v":""}]
[null,null,null,12,"",null,{"$f":"+IF(COUNTA(Segment!F48),+Segment!F48,\"\")","v":""},null,null,null,null,null,null,null,null,null,null,null,{"$f":"+IF(COUNTA(Segment!F48),+Segment!F48,\"\")","v":""}]
[null,null,null,13,"",null,{"$f":"+IF(COUNTA(Segment!F49),+Segment!F49,\"\")","v":""},null,null,null,null,null,null,null,null,null,null,null,{"$f":"+IF(COUNTA(Segment!F49),+Segment!F49,\"\")","v":""}]
[null,null,null,14,"",null,{"$f":"+IF(COUNTA(Segment!F50),+Segment!F50,\"\")","v":""},null,null,null,null,null,null,null,null,null,null,null,{"$f":"+IF(COUNTA(Segment!F50),+Segment!F50,\"\")","v":""}]
[null,null,null,15,"",null,{"$f":"+IF(COUNTA(Segment!F51),+Segment!F51,\"\")","v":""},null,null,null,null,null,null,null,null,null,null,null,{"$f":"+IF(COUNTA(Segment!F51),+Segment!F51,\"\")","v":""}]
[null,null,null,null,"Total  Profit  before  tax",{"$f":"+IF(COUNT(F37:F51),SUM(F37:F51),\"\")","v":""},{"$f":"+IF(COUNT(G37:G51),SUM(G37:G51),\"\")","v":""},null,null,null,null,null,null,null,null,null,null,null,{"$f":"+IF(COUNTA(Segment!F52),+Segment!F52,\"\")","v":""}]
[null,null,null,null,"i. Finance cost",null,{"$f":"+IF(COUNTA(Segment!F53),+Segment!F53,\"\")","v":""},null,null,null,null,null,null,null,null,null,null,null,{"$f":"+IF(COUNTA(Segment!F53),+Segment!F53,\"\")","v":""}]
[null,null,null,null,"ii. Other Unallocable Expenditure net off Unallocable income",null,{"$f":"+IF(COUNTA(Segment!F54),+Segment!F54,\"\")","v":""},null,null,null,null,null,null,null,null,null,null,null,{"$f":"+IF(COUNTA(Segment!F54),+Segment!F54,\"\")","v":""}]
[null,null,null,null,"Profit before tax",{"$f":"+IF(COUNT(F52,F53,F54),SUM(F52)-SUM(F53)-SUM(F54),\"\")","v":""},{"$f":"+IF(COUNT(G52,G53,G54),SUM(G52)-SUM(G53)-SUM(G54),\"\")","v":""},null,null,null,null,null,null,null,null,null,null,null,{"$f":"+IF(COUNTA(Segment!F55),+Segment!F55,\"\")","v":""}]
[null,null,null,null,null,null,null,null,null,null,null,null,null,null,null,null,null,null,{"$f":"+IF(COUNTA(Segment!F56),+Segment!F56,\"\")","v":""}]
[null,null,null,3,"(Segment Asset - Segment Liabilities)",null,null,null,null,null,null,null,null,null,null,null,null,null,{"$f":"+IF(COUNTA(Segment!F57),+Segment!F57,\"\")","v":""}]
[null,null,null,null,"Segment Asset ",null,null,null,null,null,null,null,null,null,null,null,null,null,{"$f":"+IF(COUNTA(Segment!F58),+Segment!F58,\"\")","v":""}]
[null,null,null,{"$f":"+D58+1","v":1},{"$f":"+IF(COUNTA(E16),+E16,\"\")","v":""},null,{"$f":"+IF(COUNTA(Segment!F59),+Segment!F59,\"\")","v":""},null,null,null,null,null,null,null,null,null,null,null,{"$f":"+IF(COUNTA(Segment!F59),+Segment!F59,\"\")","v":""}]
[null,null,null,2,{"$f":"+IF(COUNTA(E17),+E17,\"\")","v":""},null,{"$f":"+IF(COUNTA(Segment!F60),+Segment!F60,\"\")","v":""},null,null,null,null,null,null,null,null,null,null,null,{"$f":"+IF(COUNTA(Segment!F60),+Segment!F60,\"\")","v":""}]
[null,null,null,3,"",null,{"$f":"+IF(COUNTA(Segment!F61),+Segment!F61,\"\")","v":""},null,null,null,null,null,null,null,null,null,null,null,{"$f":"+IF(COUNTA(Segment!F61),+Segment!F61,\"\")","v":""}]
[null,null,null,4,"",null,{"$f":"+IF(COUNTA(Segment!F62),+Segment!F62,\"\")","v":""},null,null,null,null,null,null,null,null,null,null,null,{"$f":"+IF(COUNTA(Segment!F62),+Segment!F62,\"\")","v":""}]
[null,null,null,5,"",null,{"$f":"+IF(COUNTA(Segment!F63),+Segment!F63,\"\")","v":""},null,null,null,null,null,null,null,null,null,null,null,{"$f":"+IF(COUNTA(Segment!F63),+Segment!F63,\"\")","v":""}]
[null,null,null,6,"",null,{"$f":"+IF(COUNTA(Segment!F64),+Segment!F64,\"\")","v":""},null,null,null,null,null,null,null,null,null,null,null,{"$f":"+IF(COUNTA(Segment!F64),+Segment!F64,\"\")","v":""}]
[null,null,null,7,"",null,{"$f":"+IF(COUNTA(Segment!F65),+Segment!F65,\"\")","v":""},null,null,null,null,null,null,null,null,null,null,null,{"$f":"+IF(COUNTA(Segment!F65),+Segment!F65,\"\")","v":""}]
[null,null,null,8,"",null,{"$f":"+IF(COUNTA(Segment!F66),+Segment!F66,\"\")","v":""},null,null,null,null,null,null,null,null,null,null,null,{"$f":"+IF(COUNTA(Segment!F66),+Segment!F66,\"\")","v":""}]
[null,null,null,9,"",null,{"$f":"+IF(COUNTA(Segment!F67),+Segment!F67,\"\")","v":""},null,null,null,null,null,null,null,null,null,null,null,{"$f":"+IF(COUNTA(Segment!F67),+Segment!F67,\"\")","v":""}]
[null,null,null,{"$f":"+D67+1","v":10},"",null,{"$f":"+IF(COUNTA(Segment!F68),+Segment!F68,\"\")","v":""},null,null,null,null,null,null,null,null,null,null,null,{"$f":"+IF(COUNTA(Segment!F68),+Segment!F68,\"\")","v":""}]
[null,null,null,11,"",null,{"$f":"+IF(COUNTA(Segment!F69),+Segment!F69,\"\")","v":""},null,null,null,null,null,null,null,null,null,null,null,{"$f":"+IF(COUNTA(Segment!F69),+Segment!F69,\"\")","v":""}]
[null,null,null,12,"",null,{"$f":"+IF(COUNTA(Segment!F70),+Segment!F70,\"\")","v":""},null,null,null,null,null,null,null,null,null,null,null,{"$f":"+IF(COUNTA(Segment!F70),+Segment!F70,\"\")","v":""}]
[null,null,null,13,"",null,{"$f":"+IF(COUNTA(Segment!F71),+Segment!F71,\"\")","v":""},null,null,null,null,null,null,null,null,null,null,null,{"$f":"+IF(COUNTA(Segment!F71),+Segment!F71,\"\")","v":""}]
[null,null,null,14,"",null,{"$f":"+IF(COUNTA(Segment!F72),+Segment!F72,\"\")","v":""},null,null,null,null,null,null,null,null,null,null,null,{"$f":"+IF(COUNTA(Segment!F72),+Segment!F72,\"\")","v":""}]
[null,null,null,15,"",null,{"$f":"+IF(COUNTA(Segment!F73),+Segment!F73,\"\")","v":""},null,null,null,null,null,null,null,null,null,null,null,{"$f":"+IF(COUNTA(Segment!F73),+Segment!F73,\"\")","v":""}]
[null,null,null,null,"Total Segment Assets",{"$f":"+IF(COUNT(F59:F73),SUM(F59:F73),\"\")","v":""},{"$f":"+IF(COUNT(G59:G73),SUM(G59:G73),\"\")","v":""},null,null,null,null,null,null,null,null,null,null,null,{"$f":"+IF(COUNTA(Segment!F74),+Segment!F74,\"\")","v":""}]
[null,null,null,null,"Un-allocable Assets",null,{"$f":"+IF(COUNTA(Segment!F75),+Segment!F75,\"\")","v":""},null,null,null,null,null,null,null,null,null,null,null,{"$f":"+IF(COUNTA(Segment!F75),+Segment!F75,\"\")","v":""}]
[null,null,null,null,"Net Segment Assets",{"$f":"+IF(COUNT(F74:F75),SUM(F74)+SUM(F75),\"\")","v":""},{"$f":"+IF(COUNT(G74:G75),SUM(G74)+SUM(G75),\"\")","v":""},null,null,null,null,null,null,null,null,null,null,null,{"$f":"+IF(COUNTA(Segment!F76),+Segment!F76,\"\")","v":""}]
[null,null,null,null,null,null,null,null,null,null,null,null,null,null,null,null,null,null,{"$f":"+IF(COUNTA(Segment!F77),+Segment!F77,\"\")","v":""}]
[null,null,null,4,"Segment Liabilities",null,null,null,null,null,null,null,null,null,null,null,null,null,{"$f":"+IF(COUNTA(Segment!F78),+Segment!F78,\"\")","v":""}]
[null,null,null,null,"Segment Liabilities",null,null,null,null,null,null,null,null,null,null,null,null,null,{"$f":"+IF(COUNTA(Segment!F79),+Segment!F79,\"\")","v":""}]
[null,null,null,1,{"$f":"+IF(COUNTA(E16),+E16,\"\")","v":""},null,{"$f":"+IF(COUNTA(Segment!F80),+Segment!F80,\"\")","v":""},null,null,null,null,null,null,null,null,null,null,null,{"$f":"+IF(COUNTA(Segment!F80),+Segment!F80,\"\")","v":""}]
[null,null,null,2,{"$f":"+IF(COUNTA(E17),+E17,\"\")","v":""},null,{"$f":"+IF(COUNTA(Segment!F81),+Segment!F81,\"\")","v":""},null,null,null,null,null,null,null,null,null,null,null,{"$f":"+IF(COUNTA(Segment!F81),+Segment!F81,\"\")","v":""}]
[null,null,null,3,"",null,{"$f":"+IF(COUNTA(Segment!F82),+Segment!F82,\"\")","v":""},null,null,null,null,null,null,null,null,null,null,null,{"$f":"+IF(COUNTA(Segment!F82),+Segment!F82,\"\")","v":""}]
[null,null,null,4,"",null,{"$f":"+IF(COUNTA(Segment!F83),+Segment!F83,\"\")","v":""},null,null,null,null,null,null,null,null,null,null,null,{"$f":"+IF(COUNTA(Segment!F83),+Segment!F83,\"\")","v":""}]
[null,null,null,5,"",null,{"$f":"+IF(COUNTA(Segment!F84),+Segment!F84,\"\")","v":""},null,null,null,null,null,null,null,null,null,null,null,{"$f":"+IF(COUNTA(Segment!F84),+Segment!F84,\"\")","v":""}]
[null,null,null,6,"",null,{"$f":"+IF(COUNTA(Segment!F85),+Segment!F85,\"\")","v":""},null,null,null,null,null,null,null,null,null,null,null,{"$f":"+IF(COUNTA(Segment!F85),+Segment!F85,\"\")","v":""}]
[null,null,null,7,"",null,{"$f":"+IF(COUNTA(Segment!F86),+Segment!F86,\"\")","v":""},null,null,null,null,null,null,null,null,null,null,null,{"$f":"+IF(COUNTA(Segment!F86),+Segment!F86,\"\")","v":""}]
[null,null,null,8,"",null,{"$f":"+IF(COUNTA(Segment!F87),+Segment!F87,\"\")","v":""},null,null,null,null,null,null,null,null,null,null,null,{"$f":"+IF(COUNTA(Segment!F87),+Segment!F87,\"\")","v":""}]
[null,null,null,9,"",null,{"$f":"+IF(COUNTA(Segment!F88),+Segment!F88,\"\")","v":""},null,null,null,null,null,null,null,null,null,null,null,{"$f":"+IF(COUNTA(Segment!F88),+Segment!F88,\"\")","v":""}]
[null,null,null,10,"",null,{"$f":"+IF(COUNTA(Segment!F89),+Segment!F89,\"\")","v":""},null,null,null,null,null,null,null,null,null,null,null,{"$f":"+IF(COUNTA(Segment!F89),+Segment!F89,\"\")","v":""}]
[null,null,null,11,"",null,{"$f":"+IF(COUNTA(Segment!F90),+Segment!F90,\"\")","v":""},null,null,null,null,null,null,null,null,null,null,null,{"$f":"+IF(COUNTA(Segment!F90),+Segment!F90,\"\")","v":""}]
[null,null,null,12,"",null,{"$f":"+IF(COUNTA(Segment!F91),+Segment!F91,\"\")","v":""},null,null,null,null,null,null,null,null,null,null,null,{"$f":"+IF(COUNTA(Segment!F91),+Segment!F91,\"\")","v":""}]
[null,null,null,13,"",null,{"$f":"+IF(COUNTA(Segment!F92),+Segment!F92,\"\")","v":""},null,null,null,null,null,null,null,null,null,null,null,{"$f":"+IF(COUNTA(Segment!F92),+Segment!F92,\"\")","v":""}]
[null,null,null,14,"",null,{"$f":"+IF(COUNTA(Segment!F93),+Segment!F93,\"\")","v":""},null,null,null,null,null,null,null,null,null,null,null,{"$f":"+IF(COUNTA(Segment!F93),+Segment!F93,\"\")","v":""}]
[null,null,null,15,"",null,{"$f":"+IF(COUNTA(Segment!F94),+Segment!F94,\"\")","v":""},null,null,null,null,null,null,null,null,null,null,null,{"$f":"+IF(COUNTA(Segment!F94),+Segment!F94,\"\")","v":""}]
[null,null,null,null,"Total Segment Liabilities",{"$f":"+IF(COUNT(F80:F94),SUM(F80:F94),\"\")","v":""},{"$f":"+IF(COUNT(G80:G94),SUM(G80:G94),\"\")","v":""},null,null,null,null,null,null,null,null,null,null,null,{"$f":"+IF(COUNTA(Segment!F95),+Segment!F95,\"\")","v":""}]
[null,null,null,null,"Un-allocable Liabilities",null,{"$f":"+IF(COUNTA(Segment!F96),+Segment!F96,\"\")","v":""},null,null,null,null,null,null,null,null,null,null,null,{"$f":"+IF(COUNTA(Segment!F96),+Segment!F96,\"\")","v":""}]
[null,null,null,null,"Net Segment Liabilities",{"$f":"+IF(COUNT(F95:F96),SUM(F95)+SUM(F96),\"\")","v":""},{"$f":"+IF(COUNT(G95:G96),SUM(G95)+SUM(G96),\"\")","v":""},null,null,null,null,null,null,null,null,null,null,null,{"$f":"+IF(COUNTA(Segment!F97),+Segment!F97,\"\")","v":""}]
[null,null,null,null,"Total capital employed"]
[null,null,null,null,"Disclosure of notes on segments"]

{"sheet":"Taxonomy","index":6,"n_rows":197,"n_cols":5,"rows_kept":197,"cut":false,"hidden":true,"merged":[]}
["element","label","type","periodType","validation"]
["General Information"]
["ScripCode","Scrip code","in-bse-fin-types:ScripCode","duration","This is a mandatory field. Should be valid SCRIP CODE  as per BSE Scrip Code Format. "]
["Symbol","NSE Symbol","xbrli:stringItemType","duration"]
["MSEISymbol","MSEI Symbol","xbrli:stringItemType","duration"]
["ISIN","ISIN","in-bse-fin-types:ISIN","duration"]
["NameOfBank","Name of bank","xbrli:stringItemType","duration"]
["ResultType","Result Type","xbrli:stringItemType","duration"]
["TypeOfCompany","Type of company","in-bse-fin-types:TypeOfCompany","duration"]
["ClassOfSecurity","Class of security","in-bse-fin-types:ClassOfSecurity","duration"]
["DateOfStartOfFinancialYear","Date of start of financial year","xbrli:dateItemType","duration"]
["DateOfEndOfFinancialYear","Date of end of financial year","xbrli:dateItemType","duration"]
["DateOfStartOfReportingPeriod","Date of start of reporting period","xbrli:dateItemType","duration"]
["DateOfEndOfReportingPeriod","Date of end of reporting period","xbrli:dateItemType","duration"]
["DateOfBoardMeetingWhenFinancialResultsWereApproved","Date of board meeting when results were approved","xbrli:dateItemType","duration","Date of board meeting when results were approved shall not be before the current financial year."]
["DateOnWhichPriorIntimationOfTheMeetingForConsideringFinancialResultsWasInformedToTheExchange","Date on which prior intimation of the meeting for considering financial results was informed to the exchange","xbrli:dateItemType","duration","\"Date on which prior intimation of the meeting for considering financial results was informed to the exchange\" shall not be later than \"Date of board meeting when results were approved\" and shall not be before the current financial year."]
["NatureOfReportStandaloneConsolidated","Nature of report standalone or consolidated","xbrli:stringItemType","duration"]
["ReportingQuarter","Reporting Quarter","xbrli:stringItemType","duration"]
["DescriptionOfPresentationCurrency","Description of presentation currency","xbrli:stringItemType","duration"]
["LevelOfRoundingUsedInFinancialStatements","Level of rounding used in financial results","in-bse-fin-types:LevelOfRounding","duration"]
["WhetherResultsAreAuditedOrUnaudited","Whether results are audited or unaudited","xbrli:stringItemType","duration"]
["IsCompanyReportingMultisegmentOrSingleSegment","Segment Reporting","xbrli:stringItemType","duration"]
["DescriptionOfSingleSegment","Description of single segment","xbrli:stringItemType","duration","This is a mandatory field as \"Single Segment\" selected in Segement Reporting field."]
["DateOfStartOfBoardMeeting","Start date of board meeting","xbrli:dateItemType","duration","Start date of board meeting would be the next quarter then the reporting quarter (e.g. if results are submitted for June, quarter start time and end time would be from July)."]
["DateOfEndOfBoardMeeting","End date of board meeting","xbrli:dateItemType","duration","End date of board meeting must be after or same day of start date of bord meeting and would be the next quarter then the reporting quarter (e.g. if results are submitted for June, quarter start time and end time would be from July) and shall not be earlier than Date of Prior Intimation."]
["StartTimeOfBoardMeeting","Start date and time of board meeting","xbrli:timeItemType","duration"]
["EndTimeOfBoardMeeting","End date and time of board meeting","xbrli:timeItemType","duration","\"End time of board meeting\" must be greater than \"Start time of board meeting\""]
["DeclarationOfUnmodifiedOpinionOrStatementOnImpactOfAuditQualification","Declaration of unmodified opinion or statement on impact of audit qualification","in-bse-fin-types:Declaration","duration","\"Not applicable\" is not allowed for \"Yearly\" reporting quarter."]
["Financial Results"]
["InterestOrDiscountOnAdvancesOrBills","Interest or discount on advances or bills","xbrli:monetaryItemType","duration"]
["RevenueOnInvestments","Income on investments","xbrli:monetaryItemType","duration"]
["InterestOnBalancesWithReserveBankOfIndiaAndOtherInterBankFunds","Interest on balances with reserve bank of India and other inter bank funds","xbrli:monetaryItemType","duration"]
["OtherInterest","Others","xbrli:monetaryItemType","duration"]
["InterestEarned","Total interest earned","xbrli:monetaryItemType","duration"]
["OtherIncome","Other income","xbrli:monetaryItemType","duration"]
["Income","Total income","xbrli:monetaryItemType","duration"]
["InterestExpended","Interest expended","xbrli:monetaryItemType","duration"]
["EmployeesCost","Employees cost","xbrli:monetaryItemType","duration"]
["DescriptionOfOperatingExpenses","Description of operating expenses","xbrli:stringItemType","duration"]
["OtherOperatingExpenses","Other Operating Expenses","xbrli:monetaryItemType","duration"]
["OtherOperatingExpenses","Total other operating expenses","xbrli:monetaryItemType","duration"]
["OperatingExpenses","Total Operating Expenses","xbrli:monetaryItemType","duration"]
["ExpenditureExcludingProvisionsAndContingencies","Total expenditure excluding provisions and contingencies","xbrli:monetaryItemType","duration"]
["OperatingProfitBeforeProvisionAndContingencies","Operating profit before provision and contingencies","xbrli:monetaryItemType","duration"]
["ProvisionsOtherThanTaxAndContingencies","Provisions other than tax and contingencies","xbrli:monetaryItemType","duration"]
["ExceptionalItems","Exceptional items","xbrli:monetaryItemType","duration"]
["ProfitLossFromOrdinaryActivitiesBeforeTax","Total profit (loss) from ordinary activities before tax","xbrli:monetaryItemType","duration"]
["TaxExpense","Provision for Tax","xbrli:monetaryItemType","duration"]
["ProfitLossFromOrdinaryActivitiesAfterTax","Net profit (loss) from ordinary activities after tax","xbrli:monetaryItemType","duration"]
["ExtraordinaryItems","Extraordinary items net of tax expenses","xbrli:monetaryItemType","duration"]
["ProfitLossForThePeriod","Net profit (loss) for the period","xbrli:monetaryItemType","duration"]
["ShareOfProfitLossOfAssociates","Share of profit (loss) of associates","xbrli:monetaryItemType","duration"]
["ProfitLossOfMinorityInterest","Profit (loss) of minority interest","xbrli:monetaryItemType","duration"]
["ProfitLossAfterTaxesMinorityInterestAndShareOfProfitLossOfAssociates","Net Profit (loss) after taxes minority interest and share of profit (loss) of associates","xbrli:monetaryItemType","duration"]
["PaidUpValueOfEquityShareCapital","Paid-up equity share capital","xbrli:monetaryItemType","duration"]
["FaceValueOfEquityShareCapital","Face value of equity share capital","num:perShareItemType","duration"]
["ReserveExcludingRevaluationReserves","Reserve excluding revaluation reserves (as per balance sheet of previous accounting year)","xbrli:monetaryItemType","duration"]
["PercentageOfShareHeldByGovernmentOfIndia","Percentage of share held by government of India","num:percentItemType","duration"]
["CET1Ratio","CET 1 ratio","num:percentItemType","duration"]
["AdditionalTier1Ratio","Additional Tier 1 ratio","num:percentItemType","duration"]
["BasicEarningsPerShareBeforeExtraordinaryItems","Basic earnings per share before extraordinary items","num:perShareItemType","duration"]
["DilutedEarningsPerShareBeforeExtraordinaryItems","Diluted earnings per share before extraordinary items","num:perShareItemType","duration"]
["BasicEarningsPerShareAfterExtraordinaryItems","Basic earnings per share after extraordinary items","num:perShareItemType","duration"]
["DilutedEarningsPerShareAfterExtraordinaryItems","Diluted earnings per share after extraordinary items","num:perShareItemType","duration"]
["GrossNonPerformingAssets","Amount of gross non-performing assets","xbrli:monetaryItemType","duration"]
["PercentageOfGrossNpa","% of gross NPAs","num:percentItemType","duration"]
["NonPerformingAssets","Amount of net non-performing assets","xbrli:monetaryItemType","duration"]
["PercentageOfNpa","% of net NPAs","num:percentItemType","duration"]
["ReturnOnAssets","Return on assets","num:percentItemType","duration"]
["DisclosureOfNotesOnFinancialResultsExplanatoryTextBlock","Disclosure of notes on financial results by banks","nonnum:textBlockItemType","duration"]
["Asset Liabilities"]
["CashAndBalancesWithReserveBankOfIndia","Cash and Balances with Reserve Bank of India ","xbrli:monetaryItemType","instant"]
["BalancesWithBanksAndMoneyAtCallAndShortNotice","Balances with Banks and money at call and short notice ","xbrli:monetaryItemType","instant"]
["Investments","Investments ","xbrli:monetaryItemType","instant"]
["Advances","Advances ","xbrli:monetaryItemType","instant"]
["FixedAssets","Fixed Assets ","xbrli:monetaryItemType","instant"]
["OtherAssets","Other Assets ","xbrli:monetaryItemType","instant"]
["Assets","Total Assets ","xbrli:monetaryItemType","instant","\"Total Asset\" must match with \"Total Capital Liabilities\" mentioned in sheet \"Asset Liabilities\""]
["Capital","Capital ","xbrli:monetaryItemType","instant"]
["ReservesAndSurplus","Reserves and surplus ","xbrli:monetaryItemType","instant"]
["Deposits","Deposits ","xbrli:monetaryItemType","instant"]
["Borrowings","Borrowings ","xbrli:monetaryItemType","instant"]
["OtherLiabilitiesAndProvisions","Other liabilities and provisions ","xbrli:monetaryItemType","instant"]
["CapitalAndLiabilities","Total Capital Liabilities ","xbrli:monetaryItemType","instant","\"Total Capital Liabilities\" must match with \"Total Assets\" mentioned in sheet \"Asset Liabilities\""]
["DisclosureOfNotesOnAssetsAndLiabilitiesExplanatoryTextBlock","Disclosure of notes on assets and liabilities","nonnum:textBlockItemType","duration"]
["Segment"]
["DescriptionOfReportableSegment","Description Of reportable segments","xbrli:stringItemType","duration"]
["SegmentRevenue","Segment revenue","xbrli:monetaryItemType","duration"]
["SegmentRevenue","Total Segment Revenue","xbrli:monetaryItemType","duration"]
["InterSegmentRevenue","Less: Inter segment revenue","xbrli:monetaryItemType","duration"]
["SegmentRevenueFromOperations","Income from operations","xbrli:monetaryItemType","duration"]
["SegmentProfitLossBeforeTaxAndFinanceCosts","Profit (loss) before tax and interest","xbrli:monetaryItemType","duration"]
["SegmentProfitLossBeforeTaxAndFinanceCosts","Total  Profit  before  tax","xbrli:monetaryItemType","duration"]
["SegmentFinanceCosts","i. Finance cost","xbrli:monetaryItemType","duration"]
["OtherUnallocableExpenditureNetOffUnAllocableIncome","ii. Other Unallocable Expenditure net off Unallocable income","xbrli:monetaryItemType","duration"]
["SegmentProfitBeforeTax","Profit before tax","xbrli:monetaryItemType","duration"]
["SegmentAssets","Segment Asset ","xbrli:monetaryItemType","instant"]
["SegmentAssets","Total Segment Assets","xbrli:monetaryItemType","instant"]
["UnAllocableAssets","Un-allocable Assets","xbrli:monetaryItemType","instant"]
["NetSegmentAssets","Net Segment Assets","xbrli:monetaryItemType","instant"]
["SegmentLiabilities","Segment Liabilities","xbrli:monetaryItemType","instant"]
["SegmentLiabilities","Total Segment Liabilities","xbrli:monetaryItemType","instant"]
["UnAllocableLiabilities","Un-allocable Liabilities","xbrli:monetaryItemType","instant"]
["NetSegmentLiabilities","Net Segment Liabilities","xbrli:monetaryItemType","instant"]
["DisclosureOfNotesOnSegmentsExplanatoryTextBlock","Disclosure of notes on segments","nonnum:textBlockItemType","duration"]
["WhetherCashFlowStatementIsApplicableOnCompany","Whether cash flow statement is applicable on company","xbrli:booleanItemType","duration"]
["TypeOfCashFlowStatement","Type of cash flow statement","in-bse-fin-types:TypeOfCashFlowStatement","duration"]
["ReceiptsFromSalesOfGoodsAndRenderingOfServices","Receipts from sales of goods and rendering of services","xbrli:monetaryItemType","duration"]
["ReceiptsFromRoyaltiesFeesCommissionsAndOtherRevenue","Receipts from royalties fees, commissions and other revenue","xbrli:monetaryItemType","duration"]
["ReceiptsFromFutureContractsForwardContractsOptionsContractsAndSwapContractsHeldForDealingOrTradingPurpose","Receipts from future contracts, forward contracts, options contracts and swap contracts held for dealing or trading purpose","xbrli:monetaryItemType","duration"]
["ReceiptsFromPremiumsAndClaimsAnnuitiesAndOtherPolicyBenefits","Receipts from premiums and claims annuities and other policy benefits","xbrli:monetaryItemType","duration"]
["OtherCashReceiptsFromOperatingActivities","Other cash receipts from operating activities","xbrli:monetaryItemType","duration"]
["ClassesOfCashPaymentsAbstract","Classes of cash payments [Abstract]","xbrli:stringItemType","duration"]
["PaymentsToSuppliersForGoodsAndServices","Payments to suppliers for goods and services","xbrli:monetaryItemType","duration"]
["PaymentsToFutureContractsForwardContractsOptionsContractsAndSwapContractsHeldForDealingOrTradingPurpose","Payments to future contracts, forward contracts, options contracts and swap contracts held for dealing or trading purpose","xbrli:monetaryItemType","duration"]
["PaymentsToAndOnBehalfOfEmployees","Payments to and on behalf of employees","xbrli:monetaryItemType","duration"]
["PaymentsForPremiumsAndClaimsAnnuitiesAndOtherPolicyBenefits","Payments for premiums and claims, annuities and other policy benefits","xbrli:monetaryItemType","duration"]
["OtherCashPaymentsFromOperatingActivities","Other cash payments from operating activities","xbrli:monetaryItemType","duration"]
["CashFlowsFromUsedInOperations","Net cash flows from (used in) operations","xbrli:monetaryItemType","duration"]
["DividendsReceivedClassifiedAsOperatingActivities","Dividends received operating activities","xbrli:monetaryItemType","duration"]
["InterestPaidClassifiedAsOperatingActivities","Interest paid operating activities","xbrli:monetaryItemType","duration"]
["InterestReceivedClassifiedAsOperatingActivities","Interest received operating activities","xbrli:monetaryItemType","duration"]
["IncomeTaxesPaidRefundClassifiedAsOperatingActivities","Income taxes paid (refund) operating activities","xbrli:monetaryItemType","duration"]
["OtherInflowsOutflowsOfCashClassifiedAsOperatingActivities","Other inflows (outflows) of cash operating activities","xbrli:monetaryItemType","duration"]
["CashFlowsFromUsedInOperatingActivitiesBeforeExtraordinaryItems","Net cash flows from (used in) operating activities before extraordinary items","xbrli:monetaryItemType","duration"]
["ProceedsFromExtraordinaryItemsClassifiedAsOperatingActivities","Proceeds from extraordinary items operating activities","xbrli:monetaryItemType","duration"]
["PaymentForExtraordinaryItemsClassifiedAsOperatingActivities","Payment for extraordinary items operating activities","xbrli:monetaryItemType","duration"]
["CashFlowsFromUsedInOperatingActivities","Net cash flows from (used in) operating activities","xbrli:monetaryItemType","duration"]
["CashFlowsFromUsedInInvestingActivitiesAbstract","Cash flows from used in investing activities [Abstract]","xbrli:stringItemType","duration"]
["CashFlowsFromLosingControlOfSubsidiariesOrOtherBusinessesClassifiedAsInvestingActivities","Cash flows from losing control of subsidiaries or other businesses","xbrli:monetaryItemType","duration"]
["CashFlowsUsedInObtainingControlOfSubsidiariesOrOtherBusinessesClassifiedAsInvestingActivities","Cash flows used in obtaining control of subsidiaries or other businesses","xbrli:monetaryItemType","duration"]
["OtherCashReceiptsFromSalesOfEquityOrDebtInstrumentsOfOtherEntitiesClassifiedAsInvestingActivities","Other cash receipts from sales of equity or debt instruments of other entities","xbrli:monetaryItemType","duration"]
["OtherCashPaymentsToAcquireEquityOrDebtInstrumentsOfOtherEntitiesClassifiedAsInvestingActivities","Other cash payments to acquire equity or debt instruments of other entities","xbrli:monetaryItemType","duration"]
["OtherCashReceiptsFromSalesOfInterestsInJointVenturesClassifiedAsInvestingActivities","Other cash receipts from sales of interests in joint ventures","xbrli:monetaryItemType","duration"]
["OtherCashPaymentsToAcquireInterestsInJointVenturesClassifiedAsInvestingActivities","Other cash payments to acquire interests in joint ventures","xbrli:monetaryItemType","duration"]
["CashReceiptsFromShareOfProfitsOfPartnershipFirmOrAssociationOfPersonsOrLimitedLiabilityPartnerships","Cash receipts from share of profits of partnership firm or association of persons or limited liability partnerships","xbrli:monetaryItemType","duration"]
["CashPaymentForInvestmentInPartnershipFirmOrAssociationOfPersonsOrLimitedLiabilityPartnerships","Cash payment for investment in partnership firm or association of persons or limited liability partnerships","xbrli:monetaryItemType","duration"]
["ProceedsFromSalesOfTangibleAssetsClassifiedAsInvestingActivities","Proceeds from sales of tangible assets","xbrli:monetaryItemType","duration"]
["PurchaseOfTangibleAssetsClassifiedAsInvestingActivities","Purchase of tangible assets","xbrli:monetaryItemType","duration"]
["ProceedsFromSalesOfIntangibleAssetsClassifiedAsInvestingActivities","Proceeds from sales of intangible assets","xbrli:monetaryItemType","duration"]
["PurchaseOfIntangibleAssetsClassifiedAsInvestingActivities","Purchase of intangible assets","xbrli:monetaryItemType","duration"]
["CashAdvancesAndLoansMadeToOtherPartiesClassifiedAsInvestingActivities","Cash advances and loans made to other parties","xbrli:monetaryItemType","duration"]
["CashReceiptsFromRepaymentOfAdvancesAndLoansMadeToOtherPartiesClassifiedAsInvestingActivities","Cash receipts from repayment of advances and loans made to other parties","xbrli:monetaryItemType","duration"]
["CashPaymentsForFutureContractsForwardContractsOptionContractsAndSwapContractsClassifiedAsInvestingActivities","Cash payments for future contracts, forward contracts, option contracts and swap contracts","xbrli:monetaryItemType","duration"]
["CashReceiptsFromFutureContractsForwardContractsOptionContractsAndSwapContractsClassifiedAsInvestingActivities","Cash receipts from future contracts, forward contracts, option contracts and swap contracts","xbrli:monetaryItemType","duration"]
["DividendsReceivedClassifiedAsInvestingActivities","Dividends received investing activities","xbrli:monetaryItemType","duration"]
["InterestReceivedClassifiedAsInvestingActivities","Interest received investing activities","xbrli:monetaryItemType","duration"]
["IncomeTaxesPaidRefundClassifiedAsInvestingActivities","Income taxes paid (refund) investing activities","xbrli:monetaryItemType","duration"]
["OtherInflowsOutflowsOfCashClassifiedAsInvestingActivities","Other inflows (outflows) of cash investing activities","xbrli:monetaryItemType","duration"]
["ProceedsFromGovernmentGrantsClassifiedAsInvestingActivities","Proceeds from government grants","xbrli:monetaryItemType","duration"]
["CashFlowsFromUsedInInvestingActivitiesBeforeExtraordinaryItems","Net cash flows from (used in) investing activities before extraordinary items","xbrli:monetaryItemType","duration"]
["ProceedsFromExtraordinaryItemsClassifiedAsInvestingActivities","Proceeds from extraordinary items investing activities","xbrli:monetaryItemType","duration"]
["PaymentForExtraordinaryItemsClassifiedAsInvestingActivities","Payment for extraordinary items investing activities","xbrli:monetaryItemType","duration"]
["CashFlowsFromUsedInInvestingActivities","Net cash flows from (used in) investing activities","xbrli:monetaryItemType","duration"]
["CashFlowsFromUsedInFinancingActivitiesAbstract","Cash flows from used in financing activities [Abstract]","xbrli:stringItemType","duration"]
["ProceedsFromIssuingShares","Proceeds from issuing shares","xbrli:monetaryItemType","duration"]
["ProceedsFromIssuingOtherEquityInstruments","Proceeds from issuing other equity instruments","xbrli:monetaryItemType","duration"]
["ProceedsFromIssuingDebenturesNotesBondsEtc","Proceeds from issuing debentures notes bonds etc","xbrli:monetaryItemType","duration"]
["ProceedsFromBorrowingsClassifiedAsFinancingActivities","Proceeds from borrowings","xbrli:monetaryItemType","duration"]
["RepaymentsOfBorrowingsClassifiedAsFinancingActivities","Repayments of borrowings","xbrli:monetaryItemType","duration"]
["DividendsPaidClassifiedAsFinancingActivities","Dividends paid","xbrli:monetaryItemType","duration"]
["InterestPaidClassifiedAsFinancingActivities","Interest paid","xbrli:monetaryItemType","duration"]
["IncomeTaxesPaidRefundClassifiedAsFinancingActivities","Income taxes paid (refund)","xbrli:monetaryItemType","duration"]
["OtherInflowsOutflowsOfCashClassifiedAsFinancingActivities","Other inflows (outflows) of cash","xbrli:monetaryItemType","duration"]
["CashFlowsFromUsedInFinancingActivitiesBeforeExtraordinaryItems","Net cash flows from (used in) financing activities before extraordinary items","xbrli:monetaryItemType","duration"]
["ProceedsFromExtraordinaryItemsClassifiedAsFinancingActivities","Proceeds from extraordinary items","xbrli:monetaryItemType","duration"]
["PaymentForExtraordinaryItemsClassifiedAsFinancingActivities","Payment for extraordinary items","xbrli:monetaryItemType","duration"]
["CashFlowsFromUsedInFinancingActivities","Net cash flows from (used in) financing activities","xbrli:monetaryItemType","duration"]
["IncreaseDecreaseInCashAndCashEquivalentsBeforeEffectOfExchangeRateChanges","Net increase (decrease) in cash and cash equivalents before effect of exchange rate changes","xbrli:monetaryItemType","duration"]
["EffectOfExchangeRateChangesOnCashAndCashEquivalentsAbstract","Effect of exchange rate changes on cash and cash equivalents [Abstract]","xbrli:stringItemType","duration"]
["EffectOfExchangeRateChangesOnCashAndCashEquivalents","Effect of exchange rate changes on cash and cash equivalents","xbrli:monetaryItemType","duration"]
["IncreaseDecreaseInCashAndCashEquivalents","Net increase (decrease) in cash and cash equivalents","xbrli:monetaryItemType","duration"]
["CashAndCashEquivalentsCashFlowStatement","Cash and cash equivalents cash flow statement at beginning of period","xbrli:monetaryItemType","instant"]
["CashAndCashEquivalentsCashFlowStatement","Cash and cash equivalents cash flow statement at end of period","xbrli:monetaryItemType","instant"]
["ProfitBeforeExtraordinaryItemsAndTax","Total profit before extraordinary items and tax","xbrli:monetaryItemType","duration","Total profit before extraordinary items and tax is equal to Total expenditure excluding provisions and contingencies."]
["AdjustmentsForReconcileProfitLossAbstract","Adjustments for reconcile profit (loss) [Abstract]","xbrli:stringItemType","duration"]
["AdjustmentsToProfitLossAbstract","Adjustments to profit (loss) [Abstract]","xbrli:stringItemType","duration"]
["AdjustmentsForFinanceCosts","Adjustments for finance costs","xbrli:monetaryItemType","duration"]
["AdjustmentsForDepreciationAndAmortisationExpense","Adjustments for depreciation and amortisation expense","xbrli:monetaryItemType","duration"]
["AdjustmentsForImpairmentLossReversalOfImpairmentLossRecognisedInProfitOrLoss","Adjustments for impairment loss reversal of impairment loss recognised in profit or loss","xbrli:monetaryItemType","duration"]
["AdjustmentsForUnrealisedForeignExchangeLossesGains","Adjustments for unrealised foreign exchange losses gains","xbrli:monetaryItemType","duration"]
["AdjustmentsForDividendIncome","Adjustments for dividend income","xbrli:monetaryItemType","duration"]
["AdjustmentsForSharebasedPayments","Adjustments for share-based payments","xbrli:monetaryItemType","duration"]
["OtherAdjustmentsForWhichCashEffectsAreInvestingOrFinancingCashFlow","Other adjustments for which cash effects are investing or financing cash flow","xbrli:monetaryItemType","duration"]
["OtherAdjustmentsToReconcileProfitLoss","Other adjustments to reconcile profit (loss)","xbrli:monetaryItemType","duration"]
["OtherAdjustmentsForNoncashItems","Other adjustments for non-cash items","xbrli:monetaryItemType","duration"]
["ShareOfProfitAndLossFromPartnershipFirmOrAssociationOfPersonsOrLimitedLiabilityPartnerships","Share of profit and loss from partnership firm or association of persons or limited liability partnerships","xbrli:monetaryItemType","duration"]
["AdjustmentsToProfitLoss","Total adjustments to profit (loss)","xbrli:monetaryItemType","duration"]
["AdjustmentsForWorkingCapitalAbstract","Adjustments for working capital [Abstract]","xbrli:stringItemType","duration"]
["AdjustmentsForDecreaseIncreaseInInventories","Adjustments for decrease (increase) in inventories","xbrli:monetaryItemType","duration"]
["AdjustmentsForDecreaseIncreaseInTradeReceivables","Adjustments for decrease (increase) in trade receivables","xbrli:monetaryItemType","duration"]
["AdjustmentsForDecreaseIncreaseInOtherCurrentAssets","Adjustments for decrease (increase) in other current assets","xbrli:monetaryItemType","duration"]
["AdjustmentsForIncreaseDecreaseInTradePayables","Adjustments for increase (decrease) in trade payables","xbrli:monetaryItemType","duration"]
["AdjustmentsForIncreaseDecreaseInOtherCurrentLiabilities","Adjustments for increase (decrease) in other current liabilities","xbrli:monetaryItemType","duration"]
["AdjustmentsForProvisions","Adjustments for provisions","xbrli:monetaryItemType","duration"]
["AdjustmentsForWorkingCapital","Total adjustments for working capital","xbrli:monetaryItemType","duration"]
["AdjustmentsForReconcileProfitLoss","Total adjustments for reconcile profit (loss)","xbrli:monetaryItemType","duration"]

{"sheet":"Cash Flow Direct","index":7,"n_rows":84,"n_cols":18,"rows_kept":84,"cut":false,"hidden":true,"merged":[[7,3,7,5],[8,3,8,4]]}
[]
[]
[]
[]
[]
[]
[]
[null,null,null,"Cash Flow Statement,Direct"]
[null,null,null,"Particulars",null,{"$f":"IF('General Info'!E19=\"Half yearly\",\"6 months ended (dd-mm-yyyy)\",\"Year ended (dd-mm-yyyy)\")","v":"Year ended (dd-mm-yyyy)"}]
[null,null,null,"A","Date of start of reporting period"]
[null,null,null,"B","Date of end of reporting period"]
[null,null,null,"C","Whether results are audited or unaudited",{"$f":"+IF(COUNTA('General Info'!E21),'General Info'!E21,\"\")","v":""},null,null,null,null,null,null,null,"Audited"]
[null,null,null,"D","Nature of report standalone or consolidated",{"$f":"+IF(COUNTA('General Info'!E20),'General Info'!E20,\"\")","v":""},null,null,null,null,null,null,null,"Unaudited"]
[]
[null,null,null,1,"Statement of cash flows",null,null,null,null,null,null,null,null,null,null,null,null,{"$f":"+IF(COUNT(F15),+F15,\"\")","v":""}]
[null,null,null,2,"Cash flows from used in operating activities",null,null,null,null,null,null,null,null,null,null,null,null,""]
[null,null,null,null,"Classes of cash receipts from operating activities",null,null,null,null,null,null,null,null,null,null,null,null,""]
[null,null,null,null,"Receipts from sales of goods and rendering of services",null,null,null,null,"Receipts from sales of goods and rendering of services",null,null,null,null,null,null,null,""]
[null,null,null,null,"Receipts from royalties fees, commissions and other revenue",null,null,null,null,"Receipts from royalties fees, commissions and other revenue",null,null,null,null,null,null,null,""]
[null,null,null,null,"Receipts from future contracts, forward contracts, options contracts and swap contracts held for dealing or trading purpose",null,null,null,null,"Receipts from future contracts, forward contracts, options contracts and swap contracts held for dealing or trading purpose",null,null,null,null,null,null,null,""]
[null,null,null,null,"Receipts from premiums and claims annuities and other policy benefits",null,null,null,null,"Receipts from premiums and claims annuities and other policy benefits",null,null,null,null,null,null,null,""]
[null,null,null,null,"Other cash receipts from operating activities",null,null,null,null,"Other cash receipts from operating activities",null,null,null,null,null,null,null,""]
[null,null,null,3,"Classes of cash payments",null,null,null,null,"Classes of cash payments [Abstract]",null,null,null,null,null,null,null,""]
[null,null,null,null,"Payments to suppliers for goods and services",null,null,null,null,"Payments to suppliers for goods and services",null,null,null,null,null,null,null,""]
[null,null,null,null,"Payments to future contracts, forward contracts, options contracts and swap contracts held for dealing or trading purpose",null,null,null,null,"Payments to future contracts, forward contracts, options contracts and swap contracts held for dealing or trading purpose",null,null,null,null,null,null,null,""]
[null,null,null,null,"Payments to and on behalf of employees",null,null,null,null,"Payments to and on behalf of employees",null,null,null,null,null,null,null,""]
[null,null,null,null,"Payments for premiums and claims, annuities and other policy benefits",null,null,null,null,"Payments for premiums and claims, annuities and other policy benefits",null,null,null,null,null,null,null,""]
[null,null,null,null,"Other cash payments from operating activities",null,null,null,null,"Other cash payments from operating activities",null,null,null,null,null,null,null,""]
[null,null,null,null,"Net cash flows from (used in) operations",{"$f":"IF(COUNT(F18:F28),ROUND(SUM(F18:F22)-SUM(F24)-SUM(F25)-SUM(F26)-SUM(F27)-SUM(F28),3),\"\")","v":""},null,null,null,"Net cash flows from (used in) operations",null,null,null,null,null,null,null,""]
[null,null,null,null,"Dividends received",null,null,null,null,"Dividends received operating activities",null,null,null,null,null,null,null,""]
[null,null,null,null,"Interest paid",null,null,null,null,"Interest paid operating activities",null,null,null,null,null,null,null,""]
[null,null,null,null,"Interest received",null,null,null,null,"Interest received operating activities",null,null,null,null,null,null,null,""]
[null,null,null,null,"Income taxes paid (refund)",null,null,null,null,"Income taxes paid (refund) operating activities",null,null,null,null,null,null,null,""]
[null,null,null,null,"Other inflows (outflows) of cash",null,null,null,null,"Other inflows (outflows) of cash operating activities",null,null,null,null,null,null,null,""]
[null,null,null,null,"Net cash flows from (used in) operating activities before extraordinary items",{"$f":"IF(COUNT(F29:F34),ROUND(SUM(F29)+SUM(F30)-SUM(F31)+SUM(F32)-SUM(F33)+SUM(F34),3),\"\")","v":""},null,null,null,"Net cash flows from (used in) operating activities before extraordinary items",null,null,null,null,null,null,null,""]
[null,null,null,null,"Proceeds from extraordinary items",null,null,null,null,"Proceeds from extraordinary items operating activities",null,null,null,null,null,null,null,""]
[null,null,null,null,"Payment for extraordinary items",null,null,null,null,"Payment for extraordinary items operating activities",null,null,null,null,null,null,null,""]
[null,null,null,null,"Net cash flows from (used in) operating activities",{"$f":"IF(COUNT(F35:F37),ROUND(SUM(F35:F36)-SUM(F37),3),\"\")","v":""},null,null,null,"Net cash flows from (used in) operating activities",null,null,null,null,null,null,null,""]
[null,null,null,4,"Cash flows from used in investing activities",null,null,null,null,"Cash flows from used in investing activities [Abstract]",null,null,null,null,null,null,null,""]
[null,null,null,null,"Cash flows from losing control of subsidiaries or other businesses",null,null,null,null,"Cash flows from losing control of subsidiaries or other businesses",null,null,null,null,null,null,null,""]
[null,null,null,null,"Cash flows used in obtaining control of subsidiaries or other businesses",null,null,null,null,"Cash flows used in obtaining control of subsidiaries or other businesses",null,null,null,null,null,null,null,""]
[null,null,null,null,"Other cash receipts from sales of equity or debt instruments of other entities",null,null,null,null,"Other cash receipts from sales of equity or debt instruments of other entities",null,null,null,null,null,null,null,""]
[null,null,null,null,"Other cash payments to acquire equity or debt instruments of other entities",null,null,null,null,"Other cash payments to acquire equity or debt instruments of other entities",null,null,null,null,null,null,null,""]
[null,null,null,null,"Other cash receipts from sales of interests in joint ventures",null,null,null,null,"Other cash receipts from sales of interests in joint ventures",null,null,null,null,null,null,null,""]
[null,null,null,null,"Other cash payments to acquire interests in joint ventures",null,null,null,null,"Other cash payments to acquire interests in joint ventures",null,null,null,null,null,null,null,""]
[null,null,null,null,"Cash receipts from share of profits of partnership firm or association of persons or limited liability partnerships",null,null,null,null,"Cash receipts from share of profits of partnership firm or association of persons or limited liability partnerships",null,null,null,null,null,null,null,""]
[null,null,null,null,"Cash payment for investment in partnership firm or association of persons or limited liability partnerships",null,null,null,null,"Cash payment for investment in partnership firm or association of persons or limited liability partnerships",null,null,null,null,null,null,null,""]
[null,null,null,null,"Proceeds from sales of tangible assets",null,null,null,null,"Proceeds from sales of tangible assets",null,null,null,null,null,null,null,""]
[null,null,null,null,"Purchase of tangible assets",null,null,null,null,"Purchase of tangible assets",null,null,null,null,null,null,null,""]
[null,null,null,null,"Proceeds from sales of intangible assets",null,null,null,null,"Proceeds from sales of intangible assets",null,null,null,null,null,null,null,""]
[null,null,null,null,"Purchase of intangible assets",null,null,null,null,"Purchase of intangible assets",null,null,null,null,null,null,null,""]
[null,null,null,null,"Cash advances and loans made to other parties",null,null,null,null,"Cash advances and loans made to other parties",null,null,null,null,null,null,null,""]
[null,null,null,null,"Cash receipts from repayment of advances and loans made to other parties",null,null,null,null,"Cash receipts from repayment of advances and loans made to other parties",null,null,null,null,null,null,null,""]
[null,null,null,null,"Cash payments for future contracts, forward contracts, option contracts and swap contracts",null,null,null,null,"Cash payments for future contracts, forward contracts, option contracts and swap contracts",null,null,null,null,null,null,null,""]
[null,null,null,null,"Cash receipts from future contracts, forward contracts, option contracts and swap contracts",null,null,null,null,"Cash receipts from future contracts, forward contracts, option contracts and swap contracts",null,null,null,null,null,null,null,""]
[null,null,null,null,"Dividends received",null,null,null,null,"Dividends received investing activities",null,null,null,null,null,null,null,""]
[null,null,null,null,"Interest received",null,null,null,null,"Interest received investing activities",null,null,null,null,null,null,null,""]
[null,null,null,null,"Income taxes paid (refund)",null,null,null,null,"Income taxes paid (refund) investing activities",null,null,null,null,null,null,null,""]
[null,null,null,null,"Other inflows (outflows) of cash",null,null,null,null,"Other inflows (outflows) of cash investing activities",null,null,null,null,null,null,null,""]
[null,null,null,null,"Proceeds from government grants",null,null,null,null,"Proceeds from government grants",null,null,null,null,null,null,null,""]
[null,null,null,null,"Net cash flows from (used in) investing activities before extraordinary items",{"$f":"IF(COUNT(F40:F60),ROUND(SUM(F40)-SUM(F41)+SUM(F42)-SUM(F43)+SUM(F44)-SUM(F45)+SUM(F46)-SUM(F47)+SUM(F48)-SUM(F49)+SUM(F50)-SUM(F51)-SUM(F52)+SUM(F53)-SUM(F54)+SUM(F55)+SUM(F56)+SUM(F57)-SUM(F58)+SUM(F59)+SUM(F60),3),\"\")","v":""},null,null,null,"Net cash flows from (used in) investing activities before extraordinary items",null,null,null,null,null,null,null,""]
[null,null,null,null,"Proceeds from extraordinary items",null,null,null,null,"Proceeds from extraordinary items investing activities",null,null,null,null,null,null,null,""]
[null,null,null,null,"Payment for extraordinary items",null,null,null,null,"Payment for extraordinary items investing activities",null,null,null,null,null,null,null,""]
[null,null,null,null,"Net cash flows from (used in) investing activities",{"$f":"IF(COUNT(F61:F63),ROUND(SUM(F61:F62)-SUM(F63),3),\"\")","v":""},null,null,null,"Net cash flows from (used in) investing activities",null,null,null,null,null,null,null,""]
[null,null,null,null,"Cash flows from used in financing activities",null,null,null,null,"Cash flows from used in financing activities [Abstract]",null,null,null,null,null,null,null,""]
[null,null,null,null,"Proceeds from issuing shares",null,null,null,null,"Proceeds from issuing shares",null,null,null,null,null,null,null,""]
[null,null,null,null,"Proceeds from issuing other equity instruments",null,null,null,null,"Proceeds from issuing other equity instruments",null,null,null,null,null,null,null,""]
[null,null,null,null,"Proceeds from issuing debentures notes bonds etc",null,null,null,null,"Proceeds from issuing debentures notes bonds etc",null,null,null,null,null,null,null,""]
[null,null,null,null,"Proceeds from borrowings",null,null,null,null,"Proceeds from borrowings",null,null,null,null,null,null,null,""]
[null,null,null,null,"Repayments of borrowings",null,null,null,null,"Repayments of borrowings",null,null,null,null,null,null,null,""]
[null,null,null,null,"Dividends paid",null,null,null,null,"Dividends paid",null,null,null,null,null,null,null,""]
[null,null,null,null,"Interest paid",null,null,null,null,"Interest paid",null,null,null,null,null,null,null,""]
[null,null,null,null,"Income taxes paid (refund)",null,null,null,null,"Income taxes paid (refund)",null,null,null,null,null,null,null,""]
[null,null,null,null,"Other inflows (outflows) of cash",null,null,null,null,"Other inflows (outflows) of cash",null,null,null,null,null,null,null,""]
[null,null,null,null,"Net cash flows from (used in) financing activities before extraordinary items",{"$f":"IF(COUNT(F66:F74),ROUND(SUM(F66:F69)+SUM(F74)-SUM(F70)-SUM(F71)-SUM(F72)-SUM(F73),3),\"\")","v":""},null,null,null,"Net cash flows from (used in) financing activities before extraordinary items",null,null,null,null,null,null,null,""]
[null,null,null,null,"Proceeds from extraordinary items",null,null,null,null,"Proceeds from extraordinary items",null,null,null,null,null,null,null,""]
[null,null,null,null,"Payment for extraordinary items",null,null,null,null,"Payment for extraordinary items",null,null,null,null,null,null,null,""]
[null,null,null,null,"Net cash flows from (used in) financing activities",{"$f":"IF(COUNT(F75:F77),ROUND(SUM(F75:F76)-SUM(F77),3),\"\")","v":""},null,null,null,"Net cash flows from (used in) financing activities",null,null,null,null,null,null,null,""]
[null,null,null,null,"Net increase (decrease) in cash and cash equivalents before effect of exchange rate changes",{"$f":"+IF(COUNT(F38:F78),ROUND(SUM(F64)+SUM(F78)+SUM(F38),3),\"\")","v":""},null,null,null,"Net increase (decrease) in cash and cash equivalents before effect of exchange rate changes",null,null,null,null,null,null,null,{"$f":"+IF(COUNT(F79),+F79,\"\")","v":""}]
[null,null,null,null,"Effect of exchange rate changes on cash and cash equivalents",null,null,null,null,"Effect of exchange rate changes on cash and cash equivalents [Abstract]",null,null,null,null,null,null,null,""]
[null,null,null,null,"Effect of exchange rate changes on cash and cash equivalents",null,null,null,null,"Effect of exchange rate changes on cash and cash equivalents",null,null,null,null,null,null,null,""]
[null,null,null,null,"Net increase (decrease) in cash and cash equivalents",{"$f":"+IF(COUNT(F79:F81),ROUND(SUM(F79)+SUM(F81),3),\"\")","v":""},null,null,null,"Net increase (decrease) in cash and cash equivalents",null,null,null,null,null,null,null,""]
[null,null,null,null,"Cash and cash equivalents cash flow statement at beginning of period",null,null,null,null,"Cash and cash equivalents cash flow statement at beginning of period",null,null,null,null,null,null,null,""]
[null,null,null,null,"Cash and cash equivalents cash flow statement at end of period",{"$f":"+IF(COUNT(F82:F83),ROUND(SUM(F82)+SUM(F83),3),\"\")","v":""},null,null,null,"Cash and cash equivalents cash flow statement at end of period",null,null,null,null,null,null,null,""]

{"sheet":"Cash Flow Indirect","index":8,"n_rows":95,"n_cols":18,"rows_kept":95,"cut":false,"hidden":true,"merged":[[7,3,7,5],[8,3,8,4],[13,4,13,5]]}
[]
[]
[]
[]
[]
[]
[]
[null,null,null,"Cash Flow Statement, Indirect"]
[null,null,null,"Particulars",null,{"$f":"IF('General Info'!E19=\"Half yearly\",\"6 months ended (dd-mm-yyyy)\",\"Year ended (dd-mm-yyyy)\")","v":"Year ended (dd-mm-yyyy)"}]
[null,null,null,"A","Date of start of reporting period"]
[null,null,null,"B","Date of end of reporting period"]
[null,null,null,"C","Whether results are audited or unaudited",{"$f":"+IF(COUNTA('General Info'!E21),'General Info'!E21,\"\")","v":""},null,null,null,null,null,null,null,"Audited"]
[null,null,null,"D","Nature of report standalone or consolidated",{"$f":"+IF(COUNTA('General Info'!E20),'General Info'!E20,\"\")","v":""},null,null,null,null,null,null,null,"Unaudited"]
[]
[null,null,null,1,"Statement of cash flows"]
[null,null,null,null,"Cash flows from used in operating activities"]
[null,null,null,null,"Profit before extraordinary items and tax",{"$f":"+IF(COUNTA('Financial Results'!$G$45),'Financial Results'!$G$45,\"\")","v":""},null,null,null,"Total profit before extraordinary items and tax",null,null,null,null,null,null,null,{"$f":"+IF(COUNTA(F17),+F17,\"\")","v":""}]
[null,null,null,2,"Adjustments for reconcile profit (loss)",null,null,null,null,"Adjustments for reconcile profit (loss) [Abstract]",null,null,null,null,null,null,null,{"$f":"+IF(COUNTA(F18),+F18,\"\")","v":""}]
[null,null,null,null,"Adjustments to profit (loss)",null,null,null,null,"Adjustments to profit (loss) [Abstract]",null,null,null,null,null,null,null,""]
[null,null,null,null,"Adjustments for finance costs",null,null,null,null,"Adjustments for finance costs",null,null,null,null,null,null,null,""]
[null,null,null,null,"Adjustments for depreciation and amortisation expense",null,null,null,null,"Adjustments for depreciation and amortisation expense",null,null,null,null,null,null,null,""]
[null,null,null,null,"Adjustments for impairment loss reversal of impairment loss recognised in profit or loss",null,null,null,null,"Adjustments for impairment loss reversal of impairment loss recognised in profit or loss",null,null,null,null,null,null,null,""]
[null,null,null,null,"Adjustments for unrealised foreign exchange losses gains",null,null,null,null,"Adjustments for unrealised foreign exchange losses gains",null,null,null,null,null,null,null,""]
[null,null,null,null,"Adjustments for dividend income",null,null,null,null,"Adjustments for dividend income",null,null,null,null,null,null,null,""]
[null,null,null,null,"Adjustments for share-based payments",null,null,null,null,"Adjustments for share-based payments",null,null,null,null,null,null,null,""]
[null,null,null,null,"Other adjustments for which cash effects are investing or financing cash flow",null,null,null,null,"Other adjustments for which cash effects are investing or financing cash flow",null,null,null,null,null,null,null,""]
[null,null,null,null,"Other adjustments to reconcile profit (loss)",null,null,null,null,"Other adjustments to reconcile profit (loss)",null,null,null,null,null,null,null,""]
[null,null,null,null,"Other adjustments for non-cash items",null,null,null,null,"Other adjustments for non-cash items",null,null,null,null,null,null,null,""]
[null,null,null,null,"Share of profit and loss from partnership firm or association of persons or limited liability partnerships",null,null,null,null,"Share of profit and loss from partnership firm or association of persons or limited liability partnerships",null,null,null,null,null,null,null,""]
[null,null,null,null,"Total adjustments to profit (loss)",{"$f":"IF(COUNT(F20:F29),ROUND(SUM(F20:F23) + SUM(F25:F29) - SUM(F24),3),\"\")","v":""},null,null,null,"Total adjustments to profit (loss)",null,null,null,null,null,null,null,""]
[null,null,null,3,"Adjustments for working capital",null,null,null,null,"Adjustments for working capital [Abstract]",null,null,null,null,null,null,null,""]
[null,null,null,null,"Adjustments for decrease (increase) in inventories",null,null,null,null,"Adjustments for decrease (increase) in inventories",null,null,null,null,null,null,null,""]
[null,null,null,null,"Adjustments for decrease (increase) in trade receivables",null,null,null,null,"Adjustments for decrease (increase) in trade receivables",null,null,null,null,null,null,null,""]
[null,null,null,null,"Adjustments for decrease (increase) in other current assets",null,null,null,null,"Adjustments for decrease (increase) in other current assets",null,null,null,null,null,null,null,""]
[null,null,null,null,"Adjustments for increase (decrease) in trade payables",null,null,null,null,"Adjustments for increase (decrease) in trade payables",null,null,null,null,null,null,null,""]
[null,null,null,null,"Adjustments for increase (decrease) in other current liabilities",null,null,null,null,"Adjustments for increase (decrease) in other current liabilities",null,null,null,null,null,null,null,""]
[null,null,null,null,"Adjustments for provisions",null,null,null,null,"Adjustments for provisions",null,null,null,null,null,null,null,""]
[null,null,null,null,"Total adjustments for working capital",{"$f":"IF(COUNT(F32:F37),ROUND(SUM(F32:F37),3),\"\")","v":""},null,null,null,"Total adjustments for working capital",null,null,null,null,null,null,null,""]
[null,null,null,null,"Total adjustments for reconcile profit (loss)",{"$f":"+IF(COUNT(F30:F38),ROUND(SUM(F30)+SUM(F38),3),\"\")","v":""},null,null,null,"Total adjustments for reconcile profit (loss)",null,null,null,null,null,null,null,""]
[null,null,null,null,"Net cash flows from (used in) operations",{"$f":"+IF(COUNT(F17:F39),ROUND(SUM(F39)+SUM(F17),3),\"\")","v":""},null,null,null,"Net cash flows from (used in) operations",null,null,null,null,null,null,null,""]
[null,null,null,null,"Dividends received",null,null,null,null,"Dividends received operating activities",null,null,null,null,null,null,null,""]
[null,null,null,null,"Interest paid",null,null,null,null,"Interest paid operating activities",null,null,null,null,null,null,null,""]
[null,null,null,null,"Interest received",null,null,null,null,"Interest received operating activities",null,null,null,null,null,null,null,""]
[null,null,null,null,"Income taxes paid (refund)",null,null,null,null,"Income taxes paid (refund) operating activities",null,null,null,null,null,null,null,""]
[null,null,null,null,"Other inflows (outflows) of cash",null,null,null,null,"Other inflows (outflows) of cash operating activities",null,null,null,null,null,null,null,""]
[null,null,null,null,"Net cash flows from (used in) operating activities before extraordinary items",{"$f":"IF(COUNT(F40:F45),ROUND(SUM(F40)+SUM(F41)-SUM(F42)+SUM(F43)-SUM(F44)+SUM(F45),3),\"\")","v":""},null,null,null,"Net cash flows from (used in) operating activities before extraordinary items",null,null,null,null,null,null,null,""]
[null,null,null,null,"Proceeds from extraordinary items",null,null,null,null,"Proceeds from extraordinary items operating activities",null,null,null,null,null,null,null,""]
[null,null,null,null,"Payment for extraordinary items",null,null,null,null,"Payment for extraordinary items operating activities",null,null,null,null,null,null,null,""]
[null,null,null,null,"Net cash flows from (used in) operating activities",{"$f":"IF(COUNT(F46:F48),ROUND(SUM(F46:F47)-SUM(F48),3),\"\")","v":""},null,null,null,"Net cash flows from (used in) operating activities",null,null,null,null,null,null,null,""]
[null,null,null,4,"Cash flows from used in investing activities",null,null,null,null,"Cash flows from used in investing activities [Abstract]",null,null,null,null,null,null,null,""]
[null,null,null,null,"Cash flows from losing control of subsidiaries or other businesses",null,null,null,null,"Cash flows from losing control of subsidiaries or other businesses",null,null,null,null,null,null,null,""]
[null,null,null,null,"Cash flows used in obtaining control of subsidiaries or other businesses",null,null,null,null,"Cash flows used in obtaining control of subsidiaries or other businesses",null,null,null,null,null,null,null,""]
[null,null,null,null,"Other cash receipts from sales of equity or debt instruments of other entities",null,null,null,null,"Other cash receipts from sales of equity or debt instruments of other entities",null,null,null,null,null,null,null,""]
[null,null,null,null,"Other cash payments to acquire equity or debt instruments of other entities",null,null,null,null,"Other cash payments to acquire equity or debt instruments of other entities",null,null,null,null,null,null,null,""]
[null,null,null,null,"Other cash receipts from sales of interests in joint ventures",null,null,null,null,"Other cash receipts from sales of interests in joint ventures",null,null,null,null,null,null,null,""]
[null,null,null,null,"Other cash payments to acquire interests in joint ventures",null,null,null,null,"Other cash payments to acquire interests in joint ventures",null,null,null,null,null,null,null,""]
[null,null,null,null,"Cash receipts from share of profits of partnership firm or association of persons or limited liability partnerships",null,null,null,null,"Cash receipts from share of profits of partnership firm or association of persons or limited liability partnerships",null,null,null,null,null,null,null,""]
[null,null,null,null,"Cash payment for investment in partnership firm or association of persons or limited liability partnerships",null,null,null,null,"Cash payment for investment in partnership firm or association of persons or limited liability partnerships",null,null,null,null,null,null,null,""]
[null,null,null,null,"Proceeds from sales of tangible assets",null,null,null,null,"Proceeds from sales of tangible assets",null,null,null,null,null,null,null,""]
[null,null,null,null,"Purchase of tangible assets",null,null,null,null,"Purchase of tangible assets",null,null,null,null,null,null,null,""]
[null,null,null,null,"Proceeds from sales of intangible assets",null,null,null,null,"Proceeds from sales of intangible assets",null,null,null,null,null,null,null,""]
[null,null,null,null,"Purchase of intangible assets",null,null,null,null,"Purchase of intangible assets",null,null,null,null,null,null,null,""]
[null,null,null,null,"Cash advances and loans made to other parties",null,null,null,null,"Cash advances and loans made to other parties",null,null,null,null,null,null,null,""]
[null,null,null,null,"Cash receipts from repayment of advances and loans made to other parties",null,null,null,null,"Cash receipts from repayment of advances and loans made to other parties",null,null,null,null,null,null,null,""]
[null,null,null,null,"Cash payments for future contracts, forward contracts, option contracts and swap contracts",null,null,null,null,"Cash payments for future contracts, forward contracts, option contracts and swap contracts",null,null,null,null,null,null,null,""]
[null,null,null,null,"Cash receipts from future contracts, forward contracts, option contracts and swap contracts",null,null,null,null,"Cash receipts from future contracts, forward contracts, option contracts and swap contracts",null,null,null,null,null,null,null,""]
[null,null,null,null,"Dividends received",null,null,null,null,"Dividends received investing activities",null,null,null,null,null,null,null,""]
[null,null,null,null,"Interest received",null,null,null,null,"Interest received investing activities",null,null,null,null,null,null,null,""]
[null,null,null,null,"Income taxes paid (refund)",null,null,null,null,"Income taxes paid (refund) investing activities",null,null,null,null,null,null,null,""]
[null,null,null,null,"Other inflows (outflows) of cash",null,null,null,null,"Other inflows (outflows) of cash investing activities",null,null,null,null,null,null,null,""]
[null,null,null,null,"Proceeds from government grants",null,null,null,null,"Proceeds from government grants",null,null,null,null,null,null,null,""]
[null,null,null,null,"Net cash flows from (used in) investing activities before extraordinary items",{"$f":"IF(COUNT(F51:F71),ROUND(SUM(F51)-SUM(F52)+SUM(F53)-SUM(F54)+SUM(F55)-SUM(F56)+SUM(F57)-SUM(F58)+SUM(F59)-SUM(F60)+SUM(F61)-SUM(F62)-SUM(F63)+SUM(F64)-SUM(F65)+SUM(F66)+SUM(F67)+SUM(F68)-SUM(F69)+SUM(F70)+SUM(F71),3),\"\")","v":""},null,null,null,"Net cash flows from (used in) investing activities before extraordinary items",null,null,null,null,null,null,null,""]
[null,null,null,null,"Proceeds from extraordinary items",null,null,null,null,"Proceeds from extraordinary items investing activities",null,null,null,null,null,null,null,""]
[null,null,null,null,"Payment for extraordinary items",null,null,null,null,"Payment for extraordinary items investing activities",null,null,null,null,null,null,null,""]
[null,null,null,null,"Net cash flows from (used in) investing activities",{"$f":"IF(COUNT(F72:F74),ROUND(SUM(F72:F73)-SUM(F74),3),\"\")","v":""},null,null,null,"Net cash flows from (used in) investing activities",null,null,null,null,null,null,null,""]
[null,null,null,5,"Cash flows from used in financing activities",null,null,null,null,"Cash flows from used in financing activities [Abstract]",null,null,null,null,null,null,null,""]
[null,null,null,null,"Proceeds from issuing shares",null,null,null,null,"Proceeds from issuing shares",null,null,null,null,null,null,null,""]
[null,null,null,null,"Proceeds from issuing other equity instruments",null,null,null,null,"Proceeds from issuing other equity instruments",null,null,null,null,null,null,null,""]
[null,null,null,null,"Proceeds from issuing debentures notes bonds etc",null,null,null,null,"Proceeds from issuing debentures notes bonds etc",null,null,null,null,null,null,null,""]
[null,null,null,null,"Proceeds from borrowings",null,null,null,null,"Proceeds from borrowings",null,null,null,null,null,null,null,""]
[null,null,null,null,"Repayments of borrowings",null,null,null,null,"Repayments of borrowings",null,null,null,null,null,null,null,""]
[null,null,null,null,"Dividends paid",null,null,null,null,"Dividends paid",null,null,null,null,null,null,null,{"$f":"+IF(COUNTA(F82),+F82,\"\")","v":""}]
[null,null,null,null,"Interest paid",null,null,null,null,"Interest paid",null,null,null,null,null,null,null,""]
[null,null,null,null,"Income taxes paid (refund)",null,null,null,null,"Income taxes paid (refund)",null,null,null,null,null,null,null,""]
[null,null,null,null,"Other inflows (outflows) of cash",null,null,null,null,"Other inflows (outflows) of cash",null,null,null,null,null,null,null,""]
[null,null,null,null,"Net cash flows from (used in) financing activities before extraordinary items",{"$f":"IF(COUNT(F77:F85),ROUND(SUM(F77:F80)+SUM(F85)-SUM(F81)-SUM(F82)-SUM(F83)-SUM(F84),3),\"\")","v":""},null,null,null,"Net cash flows from (used in) financing activities before extraordinary items",null,null,null,null,null,null,null,""]
[null,null,null,null,"Proceeds from extraordinary items",null,null,null,null,"Proceeds from extraordinary items",null,null,null,null,null,null,null,""]
[null,null,null,null,"Payment for extraordinary items",null,null,null,null,"Payment for extraordinary items",null,null,null,null,null,null,null,""]
[null,null,null,null,"Net cash flows from (used in) financing activities",{"$f":"IF(COUNT(F86:F88),ROUND(SUM(F86:F87)-SUM(F88),3),\"\")","v":""},null,null,null,"Net cash flows from (used in) financing activities",null,null,null,null,null,null,null,""]
[null,null,null,null,"Net increase (decrease) in cash and cash equivalents before effect of exchange rate changes",{"$f":"+IF(COUNT(F49:F89),ROUND(SUM(F89)+SUM(F75)+SUM(F49),3),\"\")","v":""},null,null,null,"Net increase (decrease) in cash and cash equivalents before effect of exchange rate changes",null,null,null,null,null,null,null,""]
[null,null,null,6,"Effect of exchange rate changes on cash and cash equivalents",null,null,null,null,"Effect of exchange rate changes on cash and cash equivalents [Abstract]",null,null,null,null,null,null,null,""]
[null,null,null,null,"Effect of exchange rate changes on cash and cash equivalents",null,null,null,null,"Effect of exchange rate changes on cash and cash equivalents",null,null,null,null,null,null,null,""]
[null,null,null,null,"Net increase (decrease) in cash and cash equivalents",{"$f":"+IF(COUNT(F90:F92),ROUND(SUM(F90)+SUM(F92),3),\"\")","v":""},null,null,null,"Net increase (decrease) in cash and cash equivalents",null,null,null,null,null,null,null,""]
[null,null,null,null,"Cash and cash equivalents cash flow statement at beginning of period",null,null,null,null,"Cash and cash equivalents cash flow statement at beginning of period",null,null,null,null,null,null,null,""]
[null,null,null,null,"Cash and cash equivalents cash flow statement at end of period",{"$f":"+IF(COUNT(F93:F94),ROUND(SUM(F93)+SUM(F94),3),\"\")","v":""},null,null,null,"Cash and cash equivalents cash flow statement at end of period",null,null,null,null,null,null,null,""]